Department,Entity,Pay Date,Product Family,Expense Area,Supplier Name,Transaction Number, Net Amount 
BEIS,UKAEA,06/06/2019,Engineering Goods,Fusion,Kaiser & Kraft Ltd,5045906,-515.00 
BEIS,UKAEA,24/06/2019,Travel,Fusion,P-Card Supplier,5052326, 788.89 
BEIS,UKAEA,24/06/2019,Learning and Development,Fusion,P-Card Supplier,5052326," 1,200.00 "
BEIS,UKAEA,24/06/2019,Learning and Development,Fusion,P-Card Supplier,5052326," 1,200.00 "
BEIS,UKAEA,24/06/2019,Operational Goods,Fusion,P-Card Supplier,5052361," 1,067.07 "
BEIS,UKAEA,24/06/2019,Operational Goods,Fusion,P-Card Supplier,5052361," 1,870.00 "
BEIS,UKAEA,24/06/2019,Engineering Goods,Fusion,P-Card Supplier,5052620, 568.00 
BEIS,UKAEA,24/06/2019,Engineering Goods,Fusion,P-Card Supplier,5052620, 773.40 
BEIS,UKAEA,24/06/2019,Engineering Goods,Fusion,P-Card Supplier,5052620," 1,029.50 "
BEIS,UKAEA,24/06/2019,Learning and Development,Fusion,P-Card Supplier,5052702, 641.21 
BEIS,UKAEA,24/06/2019,Engineering Goods,Fusion,P-Card Supplier,5052702, 718.69 
BEIS,UKAEA,24/06/2019,Travel,Fusion,P-Card Supplier,5052726, 570.00 
BEIS,UKAEA,24/06/2019,Engineering Goods,Other,P-Card Supplier,5052727, 912.30 
BEIS,UKAEA,24/06/2019,Engineering Goods,Other,P-Card Supplier,5052728, 600.36 
BEIS,UKAEA,24/06/2019,ICT,Fusion,P-Card Supplier,5052801," 1,386.00 "
BEIS,UKAEA,24/06/2019,Engineering Goods,Other,P-Card Supplier,5052843," 1,717.42 "
BEIS,UKAEA,24/06/2019,Entertainment - Business,Other,P-Card Supplier,5052844," 1,170.00 "
BEIS,UKAEA,24/06/2019,Travel,Other,P-Card Supplier,5052863, 785.79 
BEIS,UKAEA,24/06/2019,Travel,Fusion,P-Card Supplier,5052863, 994.00 
BEIS,UKAEA,24/06/2019,ICT,Other,P-Card Supplier,5052863," 2,456.28 "
BEIS,UKAEA,24/06/2019,Office Solutions,Fusion,P-Card Supplier,5052881, 585.63 
BEIS,UKAEA,24/06/2019,Engineering Goods,Fusion,P-Card Supplier,5052899, 616.48 
BEIS,UKAEA,24/06/2019,Learning and Development,Fusion,P-Card Supplier,5053066, 632.31 
BEIS,UKAEA,24/06/2019,Engineering Goods,Fusion,P-Card Supplier,5053214, 708.50 
BEIS,UKAEA,24/06/2019,Office Solutions,Support Services,P-Card Supplier,5053446, 952.56 
BEIS,UKAEA,24/06/2019,Engineering Goods,Fusion,P-Card Supplier,5053473, 524.50 
BEIS,UKAEA,24/06/2019,Engineering Goods,Fusion,P-Card Supplier,5053473," 2,110.01 "
BEIS,UKAEA,24/06/2019,Engineering Goods,Other,P-Card Supplier,5053491, 573.68 
BEIS,UKAEA,24/06/2019,Operational Goods,Fusion,P-Card Supplier,5053540, 500.29 
BEIS,UKAEA,24/06/2019,Engineering Goods,Fusion,P-Card Supplier,5053540, 650.93 
BEIS,UKAEA,24/06/2019,Engineering Goods,Fusion,P-Card Supplier,5053611, 508.00 
BEIS,UKAEA,24/06/2019,ICT,Fusion,P-Card Supplier,5053798, 515.43 
BEIS,UKAEA,24/06/2019,Travel,Fusion,P-Card Supplier,5053798, 518.08 
BEIS,UKAEA,24/06/2019,Travel,Fusion,P-Card Supplier,5053798, 626.97 
BEIS,UKAEA,24/06/2019,Travel,Fusion,P-Card Supplier,5053798, 629.26 
BEIS,UKAEA,24/06/2019,Travel,Fusion,P-Card Supplier,5053798, 629.26 
BEIS,UKAEA,24/06/2019,Travel,Fusion,P-Card Supplier,5053798, 760.91 
BEIS,UKAEA,24/06/2019,Engineering Goods,Fusion,P-Card Supplier,5053798, 782.50 
BEIS,UKAEA,24/06/2019,ICT,Fusion,P-Card Supplier,5053798," 1,094.13 "
BEIS,UKAEA,24/06/2019,ICT,Fusion,P-Card Supplier,5053798," 1,665.83 "
BEIS,UKAEA,24/06/2019,Facilities,Property,P-Card Supplier,5053835, 529.67 
BEIS,UKAEA,24/06/2019,Travel,Fusion,P-Card Supplier,5053835, 535.36 
BEIS,UKAEA,24/06/2019,Travel,Support Services,P-Card Supplier,5053835, 543.03 
BEIS,UKAEA,24/06/2019,Travel,Fusion,P-Card Supplier,5053835," 1,964.91 "
BEIS,UKAEA,24/06/2019,Travel,Fusion,P-Card Supplier,5053916, 678.04 
BEIS,UKAEA,24/06/2019,Travel,Fusion,P-Card Supplier,5053921, 561.26 
BEIS,UKAEA,24/06/2019,Engineering Goods,Fusion,P-Card Supplier,5053976, 847.80 
BEIS,UKAEA,24/06/2019,Operational Goods,Fusion,P-Card Supplier,5053982, 520.30 
BEIS,UKAEA,24/06/2019,Travel,Fusion,P-Card Supplier,5053982, 665.07 
BEIS,UKAEA,24/06/2019,Travel,Fusion,P-Card Supplier,5053982, 667.05 
BEIS,UKAEA,24/06/2019,Travel,Other,P-Card Supplier,5053982, 669.89 
BEIS,UKAEA,24/06/2019,Travel,Other,P-Card Supplier,5054122, 950.00 
BEIS,UKAEA,24/06/2019,Travel,Other,P-Card Supplier,5054122," 1,981.90 "
BEIS,UKAEA,24/06/2019,Travel,Fusion,P-Card Supplier,5054274, 535.36 
BEIS,UKAEA,24/06/2019,ICT,Fusion,P-Card Supplier,5054274," 2,400.00 "
BEIS,UKAEA,24/06/2019,Engineering Goods,Fusion,P-Card Supplier,5054395, 517.39 
BEIS,UKAEA,24/06/2019,Engineering Goods,Fusion,P-Card Supplier,5054395, 533.60 
BEIS,UKAEA,24/06/2019,Engineering Goods,Fusion,P-Card Supplier,5054395, 548.85 
BEIS,UKAEA,24/06/2019,Engineering Goods,Fusion,P-Card Supplier,5054395, 576.90 
BEIS,UKAEA,24/06/2019,Engineering Goods,Fusion,P-Card Supplier,5054395, 669.00 
BEIS,UKAEA,24/06/2019,Engineering Goods,Fusion,P-Card Supplier,5054395, 829.98 
BEIS,UKAEA,24/06/2019,ICT,Fusion,P-Card Supplier,5054395," 1,364.55 "
BEIS,UKAEA,24/06/2019,Travel,Fusion,P-Card Supplier,5054511, 534.35 
BEIS,UKAEA,24/06/2019,Travel,Fusion,P-Card Supplier,5054511, 541.48 
BEIS,UKAEA,24/06/2019,Travel,Fusion,P-Card Supplier,5054511, 545.06 
BEIS,UKAEA,24/06/2019,ICT,Fusion,P-Card Supplier,5054613, 675.00 
BEIS,UKAEA,24/06/2019,Travel,Other,P-Card Supplier,5054697, 859.36 
BEIS,UKAEA,24/06/2019,Travel,Support Services,P-Card Supplier,5054697," 1,982.34 "
BEIS,UKAEA,24/06/2019,Travel,Support Services,P-Card Supplier,5054698, 792.90 
BEIS,UKAEA,24/06/2019,Engineering Goods,Fusion,P-Card Supplier,5054784, 547.28 
BEIS,UKAEA,24/06/2019,Engineering Goods,Fusion,P-Card Supplier,5054784, 548.20 
BEIS,UKAEA,24/06/2019,Engineering Goods,Fusion,P-Card Supplier,5054784, 759.61 
BEIS,UKAEA,24/06/2019,Operational Goods,Fusion,P-Card Supplier,5054878, 905.00 
BEIS,UKAEA,24/06/2019,Personnel Related,Fusion,P-Card Supplier,5055226, 911.64 
BEIS,UKAEA,06/06/2019,Professional Services,Other,SenSat Surveying Limited,5055651," 16,100.00 "
BEIS,UKAEA,24/06/2019,Learning and Development,Fusion,P-Card Supplier,5055762, 774.00 
BEIS,UKAEA,24/06/2019,Engineering Goods,Fusion,P-Card Supplier,5055823, 596.00 
BEIS,UKAEA,24/06/2019,Travel,Fusion,P-Card Supplier,5055823, 668.96 
BEIS,UKAEA,24/06/2019,Engineering Goods,Fusion,P-Card Supplier,5055823, 705.94 
BEIS,UKAEA,24/06/2019,Engineering Goods,Fusion,P-Card Supplier,5055823, 720.06 
BEIS,UKAEA,24/06/2019,Facilities,Property,P-Card Supplier,5055852," 1,594.04 "
BEIS,UKAEA,06/06/2019,Engineering Goods,Fusion,Anixter UK Ltd,5055914," 1,140.00 "
BEIS,UKAEA,06/06/2019,Personnel Related,Fusion,Webrecruit,5055917, 595.00 
BEIS,UKAEA,06/06/2019,Personnel Related,Support Services,Webrecruit,5055918, 735.00 
BEIS,UKAEA,06/06/2019,Personnel Related,Fusion,Webrecruit,5055920, 664.00 
BEIS,UKAEA,06/06/2019,Hired Agency Staff - Rullion CMF/PO,Fusion,Rullion Engineering Ltd,5055921," 3,441.02 "
BEIS,UKAEA,06/06/2019,Personnel Related,Other,Webrecruit,5055922, 664.00 
BEIS,UKAEA,06/06/2019,Hired Agency Staff - Rullion CMF/PO,Fusion,Rullion Engineering Ltd,5055923," 3,253.23 "
BEIS,UKAEA,06/06/2019,Hired Agency Staff - Rullion CMF/PO,Fusion,Rullion Engineering Ltd,5055924," 4,185.02 "
BEIS,UKAEA,06/06/2019,Hired Agency Staff - Rullion CMF/PO,Fusion,Rullion Engineering Ltd,5055925," 3,104.32 "
BEIS,UKAEA,06/06/2019,Hired Agency Staff - Rullion CMF/PO,Fusion,Rullion Engineering Ltd,5055926," 3,077.83 "
BEIS,UKAEA,06/06/2019,Hired Agency Staff - Rullion CMF/PO,Fusion,Rullion Engineering Ltd,5055927," 2,508.67 "
BEIS,UKAEA,06/06/2019,Engineering Goods,Other,Edmundson Electricals Ltd,5055929," 2,394.70 "
BEIS,UKAEA,06/06/2019,Office Solutions,Fusion,Lyreco UK Limited,5055930, 793.20 
BEIS,UKAEA,06/06/2019,Engineering Goods,Other,Ind-Tech Ltd,5055933, 978.08 
BEIS,UKAEA,06/06/2019,Engineering Goods,Other,Professional Fabrication Services L,5055937," 1,000.00 "
BEIS,UKAEA,06/06/2019,Engineering Goods,Fusion,Newport Spectra-Physics Ltd,5055938, 525.00 
BEIS,UKAEA,06/06/2019,Engineering Goods,Other,Professional Fabrication Services L,5055940," 26,000.00 "
BEIS,UKAEA,06/06/2019,Personnel Related,Fusion,People Asset Management Ltd,5055944, 770.62 
BEIS,UKAEA,06/06/2019,Personnel Related,Fusion,People Asset Management Ltd,5055945, 765.31 
BEIS,UKAEA,06/06/2019,ICT,Support Services,Unit 4 Business Software,5055954," 13,000.00 "
BEIS,UKAEA,24/06/2019,Learning and Development,Support Services,P-Card Supplier,5055959," 4,166.67 "
BEIS,UKAEA,24/06/2019,Engineering Goods,Other,P-Card Supplier,5055961, 745.00 
BEIS,UKAEA,24/06/2019,Engineering Goods,Other,P-Card Supplier,5055961, 930.00 
BEIS,UKAEA,24/06/2019,Engineering Goods,Other,P-Card Supplier,5055961," 1,211.53 "
BEIS,UKAEA,24/06/2019,Travel,Fusion,P-Card Supplier,5055962, 525.00 
BEIS,UKAEA,24/06/2019,Travel,Fusion,P-Card Supplier,5055962," 1,900.00 "
BEIS,UKAEA,06/06/2019,Learning and Development,Support Services,Venusworks Ltd,5055965," 1,950.00 "
BEIS,UKAEA,06/06/2019,Learning and Development,Support Services,Venusworks Ltd,5055965," 1,950.00 "
BEIS,UKAEA,06/06/2019,Learning and Development,Support Services,GP Strategies Ltd.,5055966," 5,400.00 "
BEIS,UKAEA,06/06/2019,Learning and Development,Support Services,GP Strategies Ltd.,5055967," 1,393.20 "
BEIS,UKAEA,06/06/2019,Learning and Development,Support Services,GP Strategies Ltd.,5055968, 804.60 
BEIS,UKAEA,06/06/2019,Learning and Development,Support Services,GP Strategies Ltd.,5055969," 2,764.80 "
BEIS,UKAEA,06/06/2019,Learning and Development,Support Services,GP Strategies Ltd.,5055970, 804.60 
BEIS,UKAEA,06/06/2019,Learning and Development,Support Services,GP Strategies Ltd.,5055971, 804.60 
BEIS,UKAEA,06/06/2019,Professional Services,Support Services,Managing For Quality Ltd (Mfq),5055972," 6,480.00 "
BEIS,UKAEA,06/06/2019,Professional Services,Support Services,Equiniti,5055975," 3,226.25 "
BEIS,UKAEA,06/06/2019,Energy and Fuels,Property,Corona Energy Retail 4 Limited,5055980," 35,368.57 "
BEIS,UKAEA,06/06/2019,ICT,Support Services,Cemar,5055986," 2,450.00 "
BEIS,UKAEA,06/06/2019,ICT,Support Services,Cemar,5055991," 2,450.00 "
BEIS,UKAEA,06/06/2019,Professional Services,Support Services,Ridge And Partners Llp,5055992," 7,335.19 "
BEIS,UKAEA,06/06/2019,Engineering Goods,Fusion,RS Components Ltd,5055994," 2,954.92 "
BEIS,UKAEA,06/06/2019,Engineering Goods,Fusion,Rapid Racking Ltd,5055995," 1,838.00 "
BEIS,UKAEA,06/06/2019,Hired Agency Staff - Rullion CMF/PO,Fusion,Rullion Engineering Ltd,5056002," 2,350.72 "
BEIS,UKAEA,06/06/2019,Engineering Goods,Other,Ansaldo Nuclear Limited,5056003," 389,615.68 "
BEIS,UKAEA,06/06/2019,Facilities,Property,Securitas Security Services,5056005," 2,886.25 "
BEIS,UKAEA,06/06/2019,Construction,Other,Aquila Nuclear Engineering Ltd,5056006," 10,000.00 "
BEIS,UKAEA,06/06/2019,Personnel Related,Property,Rullion Engineering Ltd,5056007," 1,350.38 "
BEIS,UKAEA,06/06/2019,Personnel Related,Fusion,Rullion Engineering Ltd,5056008," 1,200.00 "
BEIS,UKAEA,06/06/2019,Personnel Related,Property,Webrecruit,5056010, 600.00 
BEIS,UKAEA,06/06/2019,Facilities,Property,Mears Estates,5056013," 11,234.92 "
BEIS,UKAEA,06/06/2019,Engineering Goods,Other,MCT Brattberg Ltd,5056016," 4,722.49 "
BEIS,UKAEA,06/06/2019,Facilities,Property,Securitas Security Services,5056019, 640.97 
BEIS,UKAEA,06/06/2019,Facilities,Property,Baxter Storey Ltd.,5056021," 2,710.64 "
BEIS,UKAEA,06/06/2019,Facilities,Property,Baxter Storey Ltd.,5056023," 4,223.79 "
BEIS,UKAEA,06/06/2019,Energy and Fuels,Property,EDF Energy,5056024, 543.89 
BEIS,UKAEA,06/06/2019,Facilities,Property,Mears Estates,5056025," 5,820.08 "
BEIS,UKAEA,06/06/2019,Engineering Goods,Fusion,Mayflex UK Ltd,5056032, 980.06 
BEIS,UKAEA,06/06/2019,Travel,Fusion,White Hart Hotel,5056033," 1,870.00 "
BEIS,UKAEA,06/06/2019,Engineering Goods,Other,Acrona Engineering Ltd,5056034, 961.95 
BEIS,UKAEA,06/06/2019,Professional Services,Fusion,Morson International,5056037," 341,559.57 "
BEIS,UKAEA,24/06/2019,Office Solutions,Fusion,P-Card Supplier,5056039," 1,049.57 "
BEIS,UKAEA,24/06/2019,Travel,Fusion,P-Card Supplier,5056040," 1,069.14 "
BEIS,UKAEA,24/06/2019,Travel,Fusion,P-Card Supplier,5056040," 1,231.02 "
BEIS,UKAEA,24/06/2019,Travel,Fusion,P-Card Supplier,5056040," 1,231.02 "
BEIS,UKAEA,24/06/2019,Travel,Fusion,P-Card Supplier,5056040," 1,231.02 "
BEIS,UKAEA,06/06/2019,Personnel Related,Fusion,People Asset Management Ltd,5056042, 687.00 
BEIS,UKAEA,06/06/2019,Professional Services,Fusion,RCD Lockinge Ltd,5056045," 2,125.68 "
BEIS,UKAEA,06/06/2019,Facilities,Other,Sundry Supplier,5056047, 603.30 
BEIS,UKAEA,06/06/2019,Engineering Goods,Fusion,CK Isotopes Limited,5056048," 6,785.50 "
BEIS,UKAEA,06/06/2019,Engineering Goods,Fusion,Manutan UK Limited,5056050, 676.00 
BEIS,UKAEA,06/06/2019,Professional Services,Fusion,Applus UK Ltd,5056054," 1,036.77 "
BEIS,UKAEA,06/06/2019,Engineering Goods,Fusion,nVent Solutions (UK) Ltd,5056055," 3,001.50 "
BEIS,UKAEA,24/06/2019,Travel,Other,P-Card Supplier,5056056, 594.00 
BEIS,UKAEA,07/06/2019,Engineering Goods,Other,North American Hoganas High Alloys,5056057," 1,554.35 "
BEIS,UKAEA,06/06/2019,Engineering Goods,Fusion,Qmx Laboratories Ltd,5056062, 790.00 
BEIS,UKAEA,06/06/2019,Engineering Goods,Fusion,Kaiser & Kraft Ltd,5056063," 1,480.50 "
BEIS,UKAEA,06/06/2019,Engineering Goods,Fusion,Sundry Supplier,5056064, 700.00 
BEIS,UKAEA,06/06/2019,Engineering Goods,Fusion,Sundry Supplier,5056065," 2,131.64 "
BEIS,UKAEA,06/06/2019,Construction,Property,PMS Oxford Construction Services,5056066," 1,375.40 "
BEIS,UKAEA,06/06/2019,ICT,Fusion,Barcellos Holdings Ltd,5056069, 718.74 
BEIS,UKAEA,06/06/2019,ICT,Property,Barcellos Holdings Ltd,5056069," 1,197.90 "
BEIS,UKAEA,06/06/2019,Waste Management,Fusion,Veolia ES UK Ltd,5056071," 9,033.18 "
BEIS,UKAEA,06/06/2019,Engineering Goods,Fusion,Allectra Ltd,5056072," 1,736.00 "
BEIS,UKAEA,06/06/2019,Professional Services,Support Services,Government Actuary's Department,5056075," 21,468.43 "
BEIS,UKAEA,06/06/2019,Engineering Goods,Fusion,TVH,5056077, 748.00 
BEIS,UKAEA,06/06/2019,Engineering Goods,Fusion,Edmundson Electricals Ltd,5056078, 958.75 
BEIS,UKAEA,06/06/2019,Engineering Goods,Fusion,RS Components Ltd,5056079, 553.85 
BEIS,UKAEA,06/06/2019,Engineering Goods,Fusion,RS Components Ltd,5056080, 553.85 
BEIS,UKAEA,06/06/2019,Facilities,Fusion,Insulation Contracting Services Ltd,5056081," 1,452.24 "
BEIS,UKAEA,06/06/2019,Construction,Fusion,PMS Oxford Construction Services,5056082," 2,252.35 "
BEIS,UKAEA,06/06/2019,Construction,Property,PMS Oxford Construction Services,5056083," 1,294.44 "
BEIS,UKAEA,06/06/2019,Construction,Support Services,PMS Oxford Construction Services,5056084, 669.65 
BEIS,UKAEA,06/06/2019,Engineering Goods,Fusion,Agar Scientific Ltd.,5056087, 865.12 
BEIS,UKAEA,06/06/2019,Facilities,Property,Trinity Fire & Security Systems Ltd,5056089, 607.27 
BEIS,UKAEA,06/06/2019,Facilities,Fusion,Insulation Contracting Services Ltd,5056090, 739.46 
BEIS,UKAEA,06/06/2019,Engineering Goods,Fusion,Leybold UK Ltd,5056098," 1,171.40 "
BEIS,UKAEA,06/06/2019,Engineering Goods,Fusion,Greyhound Chromatography,5056104," 1,201.64 "
BEIS,UKAEA,24/06/2019,Operational Goods,Fusion,P-Card Supplier,5056107, 996.24 
BEIS,UKAEA,06/06/2019,Travel,Fusion,Rullion Engineering Ltd,5056108, 841.85 
BEIS,UKAEA,06/06/2019,Professional Services,Property,Celtech Consultancy Ltd,5056109," 1,150.00 "
BEIS,UKAEA,06/06/2019,Energy and Fuels,Fusion,National Grid Plc,5056114," 4,000.53 "
BEIS,UKAEA,06/06/2019,Learning and Development,Support Services,Nafems Ltd,5056117," 1,005.00 "
BEIS,UKAEA,06/06/2019,Personnel Related,Support Services,CGI IT UK Limited,5056119," 4,753.22 "
BEIS,UKAEA,24/06/2019,Learning and Development,Support Services,P-Card Supplier,5056121," 2,600.00 "
BEIS,UKAEA,06/06/2019,Engineering Goods,Fusion,Sundry Supplier,5056123, 790.00 
BEIS,UKAEA,06/06/2019,Engineering Goods,Other,Acrona Engineering Ltd,5056127," 2,479.23 "
BEIS,UKAEA,06/06/2019,Travel,Support Services,Airto Ltd.,5056129," 1,300.00 "
BEIS,UKAEA,06/06/2019,Research,Fusion,The University Of Sheffield,5056130," 1,529.17 "
BEIS,UKAEA,06/06/2019,Engineering Goods,Fusion,Baldwins Crane Hire Limited,5056136, 563.00 
BEIS,UKAEA,06/06/2019,Engineering Goods,Fusion,Sundry Supplier,5056140, 958.12 
BEIS,UKAEA,06/06/2019,Energy and Fuels,Property,Scottish & Southern Metering Servic,5056145, 833.00 
BEIS,UKAEA,06/06/2019,Professional Services,Fusion,McBains Ltd,5056148," 56,068.86 "
BEIS,UKAEA,06/06/2019,Professional Services,Other,Jacobs U.K. Limited,5056149," 64,905.00 "
BEIS,UKAEA,06/06/2019,Engineering Goods,Other,Edm Precision Technologies Ltd,5056156," 2,772.00 "
BEIS,UKAEA,06/06/2019,Engineering Goods,Support Services,Boxer Machine Tools Services,5056159," 1,244.00 "
BEIS,UKAEA,06/06/2019,Engineering Goods,Fusion,Boxer Machine Tools Services,5056160," 2,600.00 "
BEIS,UKAEA,06/06/2019,Engineering Goods,Support Services,Shropshire Stainless & Aluminium Ltd,5056163, 565.20 
BEIS,UKAEA,06/06/2019,Engineering Goods,Other,Kurt J Lesker,5056164, 558.96 
BEIS,UKAEA,06/06/2019,Hired Agency Staff - Rullion CMF/PO,Support Services,Rullion Engineering Ltd,5056170," 3,404.60 "
BEIS,UKAEA,06/06/2019,Hired Agency Staff - Rullion CMF/PO,Support Services,Rullion Engineering Ltd,5056171," 3,237.43 "
BEIS,UKAEA,06/06/2019,Hired Agency Staff - Rullion CMF/PO,Support Services,Rullion Engineering Ltd,5056172," 3,697.61 "
BEIS,UKAEA,06/06/2019,Professional Services,Fusion,Oxford University - GBP,5056176," 22,642.92 "
BEIS,UKAEA,06/06/2019,Professional Services,Fusion,SST Technology Ltd,5056177," 16,080.00 "
BEIS,UKAEA,06/06/2019,Engineering Goods,Fusion,RS Components Ltd,5056178," 1,254.93 "
BEIS,UKAEA,06/06/2019,ICT,Fusion,Millgate Limited,5056179," 1,417.42 "
BEIS,UKAEA,06/06/2019,ICT,Fusion,Millgate Limited,5056180," 1,900.78 "
BEIS,UKAEA,06/06/2019,ICT,Fusion,Scan Computers International Ltd,5056181," 2,724.81 "
BEIS,UKAEA,06/06/2019,ICT,Fusion,Scan Computers International Ltd,5056182," 2,259.60 "
BEIS,UKAEA,06/06/2019,ICT,Fusion,SM Systems UK Ltd,5056183, 954.00 
BEIS,UKAEA,06/06/2019,ICT,Fusion,SM Systems UK Ltd,5056184," 2,402.00 "
BEIS,UKAEA,06/06/2019,Engineering Goods,Fusion,TC Ltd,5056188," 1,056.00 "
BEIS,UKAEA,06/06/2019,ICT,Support Services,XMA Limited,5056191," 1,624.81 "
BEIS,UKAEA,06/06/2019,Engineering Goods,Fusion,Underwoods Electrical Distributors,5056198," 2,574.75 "
BEIS,UKAEA,06/06/2019,Professional Services,Fusion,Wood Nuclear Ltd,5056201," 6,011.88 "
BEIS,UKAEA,06/06/2019,Engineering Goods,Fusion,Omega Engineering Ltd,5056203, 629.00 
BEIS,UKAEA,24/06/2019,Travel,Fusion,P-Card Supplier,5056204, 885.00 
BEIS,UKAEA,24/06/2019,Operational Goods,Fusion,P-Card Supplier,5056204, 945.63 
BEIS,UKAEA,24/06/2019,Learning and Development,Fusion,P-Card Supplier,5056204, 999.00 
BEIS,UKAEA,24/06/2019,Learning and Development,Fusion,P-Card Supplier,5056204," 1,318.80 "
BEIS,UKAEA,06/06/2019,Hired Agency Staff - Rullion CMF/PO,Fusion,Rullion Engineering Ltd,5056206," 4,139.49 "
BEIS,UKAEA,06/06/2019,Hired Agency Staff - Rullion CMF/PO,Fusion,Rullion Engineering Ltd,5056207," 5,612.36 "
BEIS,UKAEA,06/06/2019,Hired Agency Staff - Rullion CMF/PO,Other,Rullion Engineering Ltd,5056208," 8,195.00 "
BEIS,UKAEA,06/06/2019,Hired Agency Staff - Rullion CMF/PO,Fusion,Rullion Engineering Ltd,5056209," 7,100.79 "
BEIS,UKAEA,24/06/2019,Facilities,Support Services,P-Card Supplier,5056210, 734.00 
BEIS,UKAEA,06/06/2019,Hired Agency Staff - Rullion CMF/PO,Other,Rullion Engineering Ltd,5056211," 2,835.66 "
BEIS,UKAEA,06/06/2019,Hired Agency Staff - Rullion CMF/PO,Other,Rullion Engineering Ltd,5056212," 3,187.75 "
BEIS,UKAEA,06/06/2019,Hired Agency Staff - Rullion CMF/PO,Fusion,Rullion Engineering Ltd,5056213," 5,415.09 "
BEIS,UKAEA,06/06/2019,Hired Agency Staff - Rullion CMF/PO,Support Services,Rullion Engineering Ltd,5056214," 2,703.78 "
BEIS,UKAEA,06/06/2019,Hired Agency Staff - Rullion CMF/PO,Fusion,Rullion Engineering Ltd,5056215," 4,275.00 "
BEIS,UKAEA,06/06/2019,Hired Agency Staff - Rullion CMF/PO,Support Services,Rullion Engineering Ltd,5056216," 12,155.85 "
BEIS,UKAEA,06/06/2019,Engineering Goods,Fusion,Boxer Machine Tools Services,5056217, 550.00 
BEIS,UKAEA,06/06/2019,Engineering Goods,Fusion,Boxer Machine Tools Services,5056218, 650.00 
BEIS,UKAEA,06/06/2019,Engineering Goods,Fusion,Boxer Machine Tools Services,5056219, 850.00 
BEIS,UKAEA,06/06/2019,Engineering Goods,Fusion,Boxer Machine Tools Services,5056220, 850.00 
BEIS,UKAEA,06/06/2019,Hired Agency Staff - Rullion CMF/PO,Fusion,Rullion Engineering Ltd,5056223," 4,218.32 "
BEIS,UKAEA,06/06/2019,Hired Agency Staff - Rullion CMF/PO,Fusion,Rullion Engineering Ltd,5056224," 5,616.51 "
BEIS,UKAEA,06/06/2019,Professional Services,Other,Aquila Nuclear Engineering Ltd,5056232," 11,875.00 "
BEIS,UKAEA,06/06/2019,Hired Agency Staff - Rullion CMF/PO,Support Services,Rullion Engineering Ltd,5056233," 7,864.28 "
BEIS,UKAEA,06/06/2019,Hired Agency Staff - Rullion CMF/PO,Support Services,Rullion Engineering Ltd,5056235," 9,911.13 "
BEIS,UKAEA,06/06/2019,Operational Goods,Fusion,Arco Ltd,5056242," 1,437.00 "
BEIS,UKAEA,06/06/2019,Professional Services,Property,Spidex Software Limited,5056244," 8,500.00 "
BEIS,UKAEA,06/06/2019,Engineering Goods,Fusion,Life Safety Distribution GmbH,5056246," 1,038.00 "
BEIS,UKAEA,06/06/2019,Professional Services,Fusion,Boxer Machine Tools Services,5056249," 1,995.90 "
BEIS,UKAEA,06/06/2019,Hired Agency Staff - Rullion CMF/PO,Support Services,Rullion Engineering Ltd,5056259," 1,624.96 "
BEIS,UKAEA,06/06/2019,Hired Agency Staff - Rullion CMF/PO,Fusion,Rullion Engineering Ltd,5056260," 2,755.02 "
BEIS,UKAEA,06/06/2019,Hired Agency Staff - Rullion CMF/PO,Fusion,Rullion Engineering Ltd,5056263," 3,854.34 "
BEIS,UKAEA,06/06/2019,Personnel Related,Support Services,CGI IT UK Limited,5056265," 2,289.40 "
BEIS,UKAEA,24/06/2019,Engineering Goods,Property,P-Card Supplier,5056266, 770.40 
BEIS,UKAEA,06/06/2019,Hired Agency Staff - Rullion CMF/PO,Fusion,Rullion Engineering Ltd,5056267," 5,255.43 "
BEIS,UKAEA,06/06/2019,Hired Agency Staff - Rullion CMF/PO,Fusion,Rullion Engineering Ltd,5056268," 5,052.00 "
BEIS,UKAEA,06/06/2019,Hired Agency Staff - Rullion CMF/PO,Fusion,Rullion Engineering Ltd,5056269," 4,558.80 "
BEIS,UKAEA,06/06/2019,Hired Agency Staff - Rullion CMF/PO,Fusion,Rullion Engineering Ltd,5056270," 2,498.30 "
BEIS,UKAEA,06/06/2019,Hired Agency Staff - Rullion CMF/PO,Fusion,Rullion Engineering Ltd,5056271," 2,573.76 "
BEIS,UKAEA,06/06/2019,Hired Agency Staff - Rullion CMF/PO,Fusion,Rullion Engineering Ltd,5056272," 4,652.96 "
BEIS,UKAEA,06/06/2019,Hired Agency Staff - Rullion CMF/PO,Fusion,Rullion Engineering Ltd,5056273," 2,938.46 "
BEIS,UKAEA,06/06/2019,Hired Agency Staff - Rullion CMF/PO,Fusion,Rullion Engineering Ltd,5056276," 1,757.40 "
BEIS,UKAEA,06/06/2019,Engineering Goods,Fusion,Swagelok London,5056288," 8,262.48 "
BEIS,UKAEA,06/06/2019,Hired Agency Staff - Rullion CMF/PO,Fusion,Rullion Engineering Ltd,5056289," 4,590.96 "
BEIS,UKAEA,06/06/2019,Professional Services,Property,Spidex Software Limited,5056290," 1,900.00 "
BEIS,UKAEA,06/06/2019,Professional Services,Property,McBains Ltd,5056297," 4,000.00 "
BEIS,UKAEA,12/06/2019,Engineering Goods,Other,Machine Building Systems Ltd.,5056301," 1,005.60 "
BEIS,UKAEA,10/06/2019,Office Solutions,Fusion,Elsevier Science BV - EUR,5056302, 739.66 
BEIS,UKAEA,10/06/2019,Office Solutions,Fusion,IOP Publishing Ltd - EUR,5056305, 833.33 
BEIS,UKAEA,10/06/2019,Office Solutions,Fusion,IOP Publishing Ltd - EUR,5056307, 888.87 
BEIS,UKAEA,10/06/2019,Office Solutions,Fusion,IOP Publishing Ltd - EUR,5056308," 1,666.63 "
BEIS,UKAEA,12/06/2019,Professional Services,Fusion,Wood Nuclear Ltd,5056310," 15,965.83 "
BEIS,UKAEA,12/06/2019,Engineering Goods,Fusion,Faro Technologies UK Ltd,5056311," 1,044.00 "
BEIS,UKAEA,12/06/2019,Hired Agency Staff - Rullion CMF/PO,Support Services,Rullion Engineering Ltd,5056312, 619.15 
BEIS,UKAEA,12/06/2019,Construction,Fusion,Cutting Edge Diamond Drilling Ltd,5056313," 9,155.93 "
BEIS,UKAEA,12/06/2019,Hired Agency Staff - Rullion CMF/PO,Property,Rullion Engineering Ltd,5056314," 1,460.03 "
BEIS,UKAEA,12/06/2019,Energy and Fuels,Property,EDF Energy,5056316," 2,086.23 "
BEIS,UKAEA,12/06/2019,Engineering Goods,Fusion,Burckhardt Compression UK Ltd,5056317," 4,489.12 "
BEIS,UKAEA,12/06/2019,Hired Agency Staff - Rullion CMF/PO,Fusion,Rullion Engineering Ltd,5056319," 4,717.09 "
BEIS,UKAEA,12/06/2019,Hired Agency Staff - Rullion CMF/PO,Fusion,Rullion Engineering Ltd,5056320," 4,311.58 "
BEIS,UKAEA,12/06/2019,Hired Agency Staff - Rullion CMF/PO,Fusion,Rullion Engineering Ltd,5056321," 2,582.64 "
BEIS,UKAEA,12/06/2019,Professional Services,Fusion,Amber Integrated Controls & Automation Ltd.,5056323," 4,890.00 "
BEIS,UKAEA,12/06/2019,Hired Agency Staff - Rullion CMF/PO,Other,Rullion Engineering Ltd,5056324," 3,159.89 "
BEIS,UKAEA,12/06/2019,Facilities,Support Services,BWT UK Limited,5056326," 1,057.32 "
BEIS,UKAEA,12/06/2019,Hired Agency Staff - Rullion CMF/PO,Support Services,Rullion Engineering Ltd,5056335," 4,730.46 "
BEIS,UKAEA,12/06/2019,Hired Agency Staff - Rullion CMF/PO,Support Services,Rullion Engineering Ltd,5056339," 4,557.30 "
BEIS,UKAEA,12/06/2019,Engineering Goods,Fusion,Feedwater Ltd,5056340," 1,547.00 "
BEIS,UKAEA,12/06/2019,Hired Agency Staff - Rullion CMF/PO,Support Services,Rullion Engineering Ltd,5056349," 4,587.02 "
BEIS,UKAEA,12/06/2019,Hired Agency Staff - Rullion CMF/PO,Support Services,Rullion Engineering Ltd,5056350," 5,981.49 "
BEIS,UKAEA,10/06/2019,Office Solutions,Fusion,Elsevier Science BV - EUR,5056351, 885.87 
BEIS,UKAEA,12/06/2019,Facilities,Property,Baxter Storey Ltd.,5056352," 1,192.33 "
BEIS,UKAEA,12/06/2019,Facilities,Fusion,Baxter Storey Ltd.,5056353," 1,950.14 "
BEIS,UKAEA,12/06/2019,Facilities,Property,Baxter Storey Ltd.,5056354," 3,222.35 "
BEIS,UKAEA,12/06/2019,Office Solutions,Fusion,Sundry Supplier,5056356," 1,290.00 "
BEIS,UKAEA,12/06/2019,Facilities,Fusion,Baxter Storey Ltd.,5056360, 584.64 
BEIS,UKAEA,12/06/2019,Energy and Fuels,Property,EDF Energy,5056361, 629.44 
BEIS,UKAEA,12/06/2019,Engineering Goods,Fusion,National Physical Laboratory Management Ltd,5056362," 2,983.00 "
BEIS,UKAEA,10/06/2019,Engineering Goods,Fusion,MTSA Technopower B.V.,5056364," 2,919.90 "
BEIS,UKAEA,12/06/2019,Hired Agency Staff - Rullion CMF/PO,Other,Rullion Engineering Ltd,5056371," 1,806.98 "
BEIS,UKAEA,12/06/2019,Hired Agency Staff - Rullion CMF/PO,Fusion,Rullion Engineering Ltd,5056377," 2,951.19 "
BEIS,UKAEA,12/06/2019,Energy and Fuels,Fusion,EDF Energy,5056379," 512,094.79 "
BEIS,UKAEA,12/06/2019,Hired Agency Staff - Rullion CMF/PO,Fusion,Rullion Engineering Ltd,5056380," 7,246.26 "
BEIS,UKAEA,12/06/2019,Hired Agency Staff - Rullion CMF/PO,Fusion,Rullion Engineering Ltd,5056381," 9,552.56 "
BEIS,UKAEA,13/06/2019,Engineering Goods,Fusion,Weka Ag,5056382," 12,910.38 "
BEIS,UKAEA,12/06/2019,Engineering Goods,Fusion,KC Controls UK LLP,5056383," 1,539.18 "
BEIS,UKAEA,12/06/2019,Hired Agency Staff - Rullion CMF/PO,Fusion,Rullion Engineering Ltd,5056385," 5,387.78 "
BEIS,UKAEA,12/06/2019,Engineering Goods,Fusion,RS Components Ltd,5056390, 736.44 
BEIS,UKAEA,12/06/2019,Personnel Related,Support Services,CGI IT UK Limited,5056391," 1,082.15 "
BEIS,UKAEA,12/06/2019,Hired Agency Staff - Rullion CMF/PO,Fusion,Rullion Engineering Ltd,5056393," 7,032.22 "
BEIS,UKAEA,12/06/2019,Professional Services,Property,Carter Jonas LLP,5056394," 2,500.00 "
BEIS,UKAEA,12/06/2019,Professional Services,Property,Carter Jonas LLP,5056395, 860.76 
BEIS,UKAEA,12/06/2019,Facilities,Property,Ice Roofing & Cladding Ltd.,5056396," 102,870.75 "
BEIS,UKAEA,12/06/2019,Hired Agency Staff - Rullion CMF/PO,Fusion,Rullion Engineering Ltd,5056399," 7,786.67 "
BEIS,UKAEA,12/06/2019,Hired Agency Staff - Rullion CMF/PO,Other,Rullion Engineering Ltd,5056400," 7,471.77 "
BEIS,UKAEA,12/06/2019,Engineering Goods,Fusion,Farnell Electronic Components Ltd,5056403," 11,696.00 "
BEIS,UKAEA,12/06/2019,Hired Agency Staff - Rullion CMF/PO,Fusion,Rullion Engineering Ltd,5056404," 6,108.36 "
BEIS,UKAEA,12/06/2019,Hired Agency Staff - Rullion CMF/PO,Support Services,Rullion Engineering Ltd,5056405," 10,141.78 "
BEIS,UKAEA,12/06/2019,Professional Services,Fusion,Tessella Ltd,5056408," 10,088.65 "
BEIS,UKAEA,12/06/2019,Hired Agency Staff - Rullion CMF/PO,Fusion,Rullion Engineering Ltd,5056409," 2,743.20 "
BEIS,UKAEA,12/06/2019,Hired Agency Staff - Rullion CMF/PO,Fusion,Rullion Engineering Ltd,5056411," 4,188.09 "
BEIS,UKAEA,12/06/2019,Facilities,Property,Total Audio Visual Solutions Ltd,5056412, 550.00 
BEIS,UKAEA,12/06/2019,Hired Agency Staff - Rullion CMF/PO,Fusion,Rullion Engineering Ltd,5056417," 5,374.40 "
BEIS,UKAEA,12/06/2019,Engineering Goods,Fusion,RS Components Ltd,5056418, 569.05 
BEIS,UKAEA,12/06/2019,Engineering Goods,Other,Ind-Tech Ltd,5056419," 2,977.13 "
BEIS,UKAEA,12/06/2019,Engineering Goods,Other,Machining Techology (Mach-Tech) Ltd,5056421," 3,292.04 "
BEIS,UKAEA,12/06/2019,Engineering Goods,Other,Machining Techology (Mach-Tech) Ltd,5056422, 555.30 
BEIS,UKAEA,12/06/2019,Hired Agency Staff - Rullion CMF/PO,Support Services,Rullion Engineering Ltd,5056423," 5,616.00 "
BEIS,UKAEA,12/06/2019,Hired Agency Staff - Rullion CMF/PO,Support Services,Rullion Engineering Ltd,5056424," 1,389.20 "
BEIS,UKAEA,12/06/2019,Engineering Goods,Fusion,Tracks Laser & Electronics Ltd,5056425, 704.50 
BEIS,UKAEA,12/06/2019,Engineering Goods,Fusion,Farnell Electronic Components Ltd,5056426, 963.50 
BEIS,UKAEA,12/06/2019,Travel,Support Services,Mawasem Limited,5056429," 1,279.21 "
BEIS,UKAEA,12/06/2019,Travel,Support Services,Mawasem Limited,5056429," 32,222.22 "
BEIS,UKAEA,12/06/2019,Travel,Support Services,Mawasem Limited,5056429," 62,990.03 "
BEIS,UKAEA,12/06/2019,Hired Agency Staff - Rullion CMF/PO,Support Services,Rullion Engineering Ltd,5056434," 2,746.37 "
BEIS,UKAEA,12/06/2019,Hired Agency Staff - Rullion CMF/PO,Support Services,Rullion Engineering Ltd,5056438," 13,936.33 "
BEIS,UKAEA,12/06/2019,Professional Services,Fusion,ABB Ltd,5056439," 1,207.80 "
BEIS,UKAEA,12/06/2019,Professional Services,Fusion,ABB Ltd,5056439," 10,870.20 "
BEIS,UKAEA,12/06/2019,Hired Agency Staff - Rullion CMF/PO,Fusion,Rullion Engineering Ltd,5056442," 1,969.56 "
BEIS,UKAEA,12/06/2019,Hired Agency Staff - Rullion CMF/PO,Fusion,Rullion Engineering Ltd,5056448," 3,988.28 "
BEIS,UKAEA,13/06/2019,Office Solutions,Fusion,IOP Publishing Ltd - EUR,5056449," 1,875.00 "
BEIS,UKAEA,13/06/2019,Office Solutions,Fusion,IOP Publishing Ltd - EUR,5056450," 1,333.30 "
BEIS,UKAEA,13/06/2019,Office Solutions,Fusion,IOP Publishing Ltd - EUR,5056451," 1,333.30 "
BEIS,UKAEA,12/06/2019,Hired Agency Staff - Rullion CMF/PO,Other,Rullion Engineering Ltd,5056452," 2,803.68 "
BEIS,UKAEA,12/06/2019,Hired Agency Staff - Rullion CMF/PO,Other,Rullion Engineering Ltd,5056453," 3,504.29 "
BEIS,UKAEA,12/06/2019,Engineering Goods,Other,Scientific Manufacturing Solution Ltd,5056458, 938.00 
BEIS,UKAEA,12/06/2019,Hired Agency Staff - Rullion CMF/PO,Fusion,Rullion Engineering Ltd,5056460," 3,694.68 "
BEIS,UKAEA,12/06/2019,Hired Agency Staff - Rullion CMF/PO,Support Services,Rullion Engineering Ltd,5056461," 1,502.12 "
BEIS,UKAEA,12/06/2019,Engineering Goods,Fusion,Fluid Controls Ltd,5056462, 565.25 
BEIS,UKAEA,12/06/2019,Professional Services,Support Services,Grant Thornton UK LLP,5056467," 2,073.00 "
BEIS,UKAEA,12/06/2019,Hired Agency Staff - Rullion CMF/PO,Support Services,Rullion Engineering Ltd,5056468," 9,788.28 "
BEIS,UKAEA,12/06/2019,ICT,Fusion,Strumis Ltd,5056471," 19,809.70 "
BEIS,UKAEA,12/06/2019,ICT,Fusion,Dell Corporation Ltd,5056476," 1,038.00 "
BEIS,UKAEA,12/06/2019,Engineering Goods,Fusion,RS Components Ltd,5056477, 577.65 
BEIS,UKAEA,12/06/2019,ICT,Fusion,The Mathworks,5056478," 3,600.00 "
BEIS,UKAEA,12/06/2019,Research,Fusion,Imperial College London - GBP,5056479," 3,374.00 "
BEIS,UKAEA,12/06/2019,Engineering Goods,Fusion,Socotec UK Limited,5056484," 2,500.00 "
BEIS,UKAEA,12/06/2019,Engineering Goods,Fusion,RS Components Ltd,5056496, 529.42 
BEIS,UKAEA,12/06/2019,Engineering Goods,Fusion,Life Safety Distribution GmbH,5056500, 685.00 
BEIS,UKAEA,12/06/2019,Hired Agency Staff - Rullion CMF/PO,Fusion,Rullion Engineering Ltd,5056503," 1,401.30 "
BEIS,UKAEA,12/06/2019,Engineering Goods,Fusion,Pfeiffer Vacuum UK,5056504," 5,549.10 "
BEIS,UKAEA,12/06/2019,Hired Agency Staff - Rullion CMF/PO,Support Services,Rullion Engineering Ltd,5056505," 2,576.85 "
BEIS,UKAEA,12/06/2019,Hired Agency Staff - Rullion CMF/PO,Fusion,Rullion Engineering Ltd,5056506," 4,459.64 "
BEIS,UKAEA,12/06/2019,Hired Agency Staff - Rullion CMF/PO,Support Services,Rullion Engineering Ltd,5056509, 646.20 
BEIS,UKAEA,12/06/2019,Engineering Goods,Fusion,ThyssenKrupp Materials (UK) Ltd,5056516, 802.93 
BEIS,UKAEA,12/06/2019,Hired Agency Staff - Rullion CMF/PO,Other,Rullion Engineering Ltd,5056518," 6,479.69 "
BEIS,UKAEA,12/06/2019,Hired Agency Staff - Rullion CMF/PO,Other,Rullion Engineering Ltd,5056519," 9,725.00 "
BEIS,UKAEA,12/06/2019,Hired Agency Staff - Rullion CMF/PO,Fusion,Rullion Engineering Ltd,5056521," 4,750.83 "
BEIS,UKAEA,12/06/2019,Office Solutions,Support Services,DBS Disclosure Services,5056522," 3,605.00 "
BEIS,UKAEA,12/06/2019,Hired Agency Staff - Rullion CMF/PO,Fusion,Rullion Engineering Ltd,5056523," 7,835.72 "
BEIS,UKAEA,12/06/2019,Hired Agency Staff - Rullion CMF/PO,Fusion,Rullion Engineering Ltd,5056524," 5,205.16 "
BEIS,UKAEA,12/06/2019,Hired Agency Staff - Rullion CMF/PO,Fusion,Rullion Engineering Ltd,5056525," 6,777.90 "
BEIS,UKAEA,12/06/2019,Hired Agency Staff - Rullion CMF/PO,Fusion,Rullion Engineering Ltd,5056526," 6,183.65 "
BEIS,UKAEA,12/06/2019,Hired Agency Staff - Rullion CMF/PO,Fusion,Rullion Engineering Ltd,5056527," 4,888.65 "
BEIS,UKAEA,12/06/2019,Hired Agency Staff - Rullion CMF/PO,Fusion,Rullion Engineering Ltd,5056529," 4,149.70 "
BEIS,UKAEA,12/06/2019,Hired Agency Staff - Rullion CMF/PO,Fusion,Rullion Engineering Ltd,5056530," 6,622.69 "
BEIS,UKAEA,12/06/2019,Hired Agency Staff - Rullion CMF/PO,Fusion,Rullion Engineering Ltd,5056531," 8,055.80 "
BEIS,UKAEA,12/06/2019,Hired Agency Staff - Rullion CMF/PO,Fusion,Rullion Engineering Ltd,5056532," 5,116.38 "
BEIS,UKAEA,12/06/2019,Hired Agency Staff - Rullion CMF/PO,Support Services,Rullion Engineering Ltd,5056537," 14,823.00 "
BEIS,UKAEA,13/06/2019,Engineering Goods,Other,IDOM,5056538," 12,646.40 "
BEIS,UKAEA,12/06/2019,Hired Agency Staff - Rullion CMF/PO,Fusion,Rullion Engineering Ltd,5056539," 5,174.40 "
BEIS,UKAEA,12/06/2019,Hired Agency Staff - Rullion CMF/PO,Fusion,Rullion Engineering Ltd,5056540, 585.74 
BEIS,UKAEA,12/06/2019,Professional Services,Fusion,Sundry Supplier,5056544," 1,190.00 "
BEIS,UKAEA,12/06/2019,Research,Fusion,University of Oxford,5056547," 1,085.94 "
BEIS,UKAEA,12/06/2019,Engineering Goods,Other,A W Clarke,5056548, 959.20 
BEIS,UKAEA,12/06/2019,Engineering Goods,Fusion,Aerospace Tooling,5056552," 5,160.00 "
BEIS,UKAEA,12/06/2019,Communications,Fusion,Sundry Supplier,5056553," 3,062.90 "
BEIS,UKAEA,12/06/2019,Professional Services,Support Services,Hydrock Consultants Ltd,5056555," 1,074.43 "
BEIS,UKAEA,12/06/2019,Engineering Goods,Fusion,RS Components Ltd,5056558," 1,359.22 "
BEIS,UKAEA,12/06/2019,Engineering Goods,Fusion,Underwoods Electrical Distributors,5056560, 745.68 
BEIS,UKAEA,12/06/2019,Hired Agency Staff - Rullion CMF/PO,Fusion,Rullion Engineering Ltd,5056561," 2,878.32 "
BEIS,UKAEA,12/06/2019,Hired Agency Staff - Rullion CMF/PO,Fusion,Rullion Engineering Ltd,5056562," 4,896.55 "
BEIS,UKAEA,12/06/2019,Hired Agency Staff - Rullion CMF/PO,Fusion,Rullion Engineering Ltd,5056563," 2,787.48 "
BEIS,UKAEA,12/06/2019,Hired Agency Staff - Rullion CMF/PO,Fusion,Rullion Engineering Ltd,5056565," 6,337.00 "
BEIS,UKAEA,12/06/2019,Hired Agency Staff - Rullion CMF/PO,Other,Rullion Engineering Ltd,5056570," 3,680.06 "
BEIS,UKAEA,12/06/2019,Engineering Goods,Fusion,Ind-Tech Ltd,5056572," 3,644.95 "
BEIS,UKAEA,12/06/2019,Hired Agency Staff - Rullion CMF/PO,Support Services,Rullion Engineering Ltd,5056573," 5,379.94 "
BEIS,UKAEA,12/06/2019,Office Solutions,Support Services,DBS Disclosure Services,5056580, 665.00 
BEIS,UKAEA,12/06/2019,Office Solutions,Support Services,DBS Disclosure Services,5056581, 531.00 
BEIS,UKAEA,12/06/2019,Engineering Goods,Fusion,LC Automation Ltd,5056583," 1,069.60 "
BEIS,UKAEA,13/06/2019,Office Solutions,Fusion,IOP Publishing Ltd - EUR,5056584, 666.65 
BEIS,UKAEA,12/06/2019,Engineering Goods,Support Services,Rhopoint Metrology Limited,5056587, 596.00 
BEIS,UKAEA,12/06/2019,Engineering Goods,Fusion,RS Components Ltd,5056589, 543.14 
BEIS,UKAEA,12/06/2019,Hired Agency Staff - Rullion CMF/PO,Support Services,Rullion Engineering Ltd,5056590," 3,804.13 "
BEIS,UKAEA,12/06/2019,Hired Agency Staff - Rullion CMF/PO,Support Services,Rullion Engineering Ltd,5056591," 4,136.32 "
BEIS,UKAEA,12/06/2019,Hired Agency Staff - Rullion CMF/PO,Support Services,Rullion Engineering Ltd,5056592," 2,226.30 "
BEIS,UKAEA,12/06/2019,Hired Agency Staff - Rullion CMF/PO,Support Services,Rullion Engineering Ltd,5056593," 2,908.46 "
BEIS,UKAEA,12/06/2019,Hired Agency Staff - Rullion CMF/PO,Other,Rullion Engineering Ltd,5056594," 4,981.41 "
BEIS,UKAEA,12/06/2019,Engineering Goods,Fusion,RS Components Ltd,5056595, 854.97 
BEIS,UKAEA,12/06/2019,Engineering Goods,Fusion,Faro Technologies UK Ltd,5056596," 1,672.00 "
BEIS,UKAEA,12/06/2019,Hired Agency Staff - Rullion CMF/PO,Fusion,Rullion Engineering Ltd,5056597," 5,904.36 "
BEIS,UKAEA,12/06/2019,Engineering Goods,Fusion,MC Air Filtration,5056601," 4,874.00 "
BEIS,UKAEA,12/06/2019,Hired Agency Staff - Rullion CMF/PO,Fusion,Rullion Engineering Ltd,5056602," 2,464.64 "
BEIS,UKAEA,12/06/2019,Professional Services,Property,Ridge And Partners Llp,5056604," 3,621.60 "
BEIS,UKAEA,12/06/2019,Hired Agency Staff - Rullion CMF/PO,Fusion,Rullion Engineering Ltd,5056605," 10,053.21 "
BEIS,UKAEA,12/06/2019,Personnel Related,Fusion,Allan Webb Ltd,5056606," 7,800.00 "
BEIS,UKAEA,12/06/2019,Professional Services,Fusion,Cavendish Nuclear Limited,5056607," 49,665.24 "
BEIS,UKAEA,12/06/2019,Hired Agency Staff - Rullion CMF/PO,Fusion,Rullion Engineering Ltd,5056609," 2,881.88 "
BEIS,UKAEA,12/06/2019,Professional Services,Fusion,Allan Webb Ltd,5056610," 9,886.50 "
BEIS,UKAEA,12/06/2019,Construction,Other,Midas Construction Limited,5056612," 743,828.00 "
BEIS,UKAEA,12/06/2019,Engineering Goods,Fusion,Utility Oils Ltd,5056613, 855.60 
BEIS,UKAEA,12/06/2019,Facilities,Property,OCS Cleaning & Support Services,5056618," 1,549.71 "
BEIS,UKAEA,12/06/2019,Facilities,Property,OCS Cleaning & Support Services,5056619," 3,930.68 "
BEIS,UKAEA,12/06/2019,Facilities,Property,OCS Cleaning & Support Services,5056619," 12,388.64 "
BEIS,UKAEA,12/06/2019,Facilities,Fusion,OCS Cleaning & Support Services,5056619," 13,619.84 "
BEIS,UKAEA,12/06/2019,Facilities,Property,OCS Cleaning & Support Services,5056620, 551.42 
BEIS,UKAEA,12/06/2019,Facilities,Property,OCS Cleaning & Support Services,5056620," 1,470.44 "
BEIS,UKAEA,12/06/2019,Facilities,Fusion,OCS Cleaning & Support Services,5056620," 1,654.25 "
BEIS,UKAEA,12/06/2019,Facilities,Property,OCS Cleaning & Support Services,5056621," 4,155.44 "
BEIS,UKAEA,12/06/2019,Professional Services,Other,Keymed (Medical & Ind Equipment) Ltd T/A Olympus Industrial,5056623," 4,111.00 "
BEIS,UKAEA,12/06/2019,Professional Services,Support Services,Keoghs,5056625, 609.00 
BEIS,UKAEA,12/06/2019,Facilities,Property,OCS Cleaning & Support Services,5056627," 1,176.04 "
BEIS,UKAEA,12/06/2019,Hired Agency Staff - Rullion CMF/PO,Other,Rullion Engineering Ltd,5056628," 3,079.78 "
BEIS,UKAEA,12/06/2019,Hired Agency Staff - Rullion CMF/PO,Other,Rullion Engineering Ltd,5056629," 3,819.24 "
BEIS,UKAEA,12/06/2019,Professional Services,Support Services,Keoghs,5056631, 588.00 
BEIS,UKAEA,12/06/2019,Professional Services,Support Services,Keoghs,5056632," 1,438.50 "
BEIS,UKAEA,12/06/2019,Professional Services,Support Services,Keoghs,5056633," 1,522.50 "
BEIS,UKAEA,12/06/2019,Hired Agency Staff - Rullion CMF/PO,Support Services,Rullion Engineering Ltd,5056635," 6,867.92 "
BEIS,UKAEA,12/06/2019,Hired Agency Staff - Rullion CMF/PO,Support Services,Rullion Engineering Ltd,5056636," 2,390.31 "
BEIS,UKAEA,12/06/2019,Facilities,Property,OCS Cleaning & Support Services,5056639," 1,039.94 "
BEIS,UKAEA,12/06/2019,Hired Agency Staff - Rullion CMF/PO,Property,Rullion Engineering Ltd,5056641," 2,053.44 "
BEIS,UKAEA,12/06/2019,Hired Agency Staff - Rullion CMF/PO,Fusion,Rullion Engineering Ltd,5056642," 7,835.14 "
BEIS,UKAEA,12/06/2019,Hired Agency Staff - Rullion CMF/PO,Fusion,Rullion Engineering Ltd,5056644," 3,652.29 "
BEIS,UKAEA,12/06/2019,Hired Agency Staff - Rullion CMF/PO,Other,Rullion Engineering Ltd,5056645," 1,366.20 "
BEIS,UKAEA,12/06/2019,Engineering Goods,Fusion,Farnell Electronic Components Ltd,5056647, 857.72 
BEIS,UKAEA,12/06/2019,Professional Services,Fusion,Fraser Walker Associates,5056648," 3,880.00 "
BEIS,UKAEA,12/06/2019,Hired Agency Staff - Rullion CMF/PO,Support Services,Rullion Engineering Ltd,5056649," 13,330.89 "
BEIS,UKAEA,12/06/2019,Hired Agency Staff - Rullion CMF/PO,Support Services,Rullion Engineering Ltd,5056650," 11,913.00 "
BEIS,UKAEA,12/06/2019,Hired Agency Staff - Rullion CMF/PO,Support Services,Rullion Engineering Ltd,5056651," 3,316.62 "
BEIS,UKAEA,12/06/2019,Hired Agency Staff - Rullion CMF/PO,Support Services,Rullion Engineering Ltd,5056652," 1,397.38 "
BEIS,UKAEA,12/06/2019,Hired Agency Staff - Rullion CMF/PO,Support Services,Rullion Engineering Ltd,5056656," 9,680.04 "
BEIS,UKAEA,12/06/2019,Operational Goods,Fusion,Arco Ltd,5056657," 1,473.00 "
BEIS,UKAEA,19/06/2019,Hired Agency Staff - Rullion CMF/PO,Fusion,Rullion Engineering Ltd,5056662," 3,061.64 "
BEIS,UKAEA,19/06/2019,Hired Agency Staff - Rullion CMF/PO,Fusion,Rullion Engineering Ltd,5056663," 3,657.00 "
BEIS,UKAEA,19/06/2019,Hired Agency Staff - Rullion CMF/PO,Fusion,Rullion Engineering Ltd,5056664," 4,769.53 "
BEIS,UKAEA,19/06/2019,Hired Agency Staff - Rullion CMF/PO,Fusion,Rullion Engineering Ltd,5056665," 5,063.04 "
BEIS,UKAEA,19/06/2019,Hired Agency Staff - Rullion CMF/PO,Fusion,Rullion Engineering Ltd,5056666," 5,608.78 "
BEIS,UKAEA,17/06/2019,Engineering Goods,Other,Hotchkiss Air Supply,5056670, 621.07 
BEIS,UKAEA,19/06/2019,Hired Agency Staff - Rullion CMF/PO,Fusion,Rullion Engineering Ltd,5056672," 4,524.39 "
BEIS,UKAEA,19/06/2019,Hired Agency Staff - Rullion CMF/PO,Fusion,Rullion Engineering Ltd,5056674," 3,927.98 "
BEIS,UKAEA,19/06/2019,Hired Agency Staff - Rullion CMF/PO,Other,Rullion Engineering Ltd,5056675," 3,566.60 "
BEIS,UKAEA,19/06/2019,Hired Agency Staff - Rullion CMF/PO,Fusion,Rullion Engineering Ltd,5056677," 5,706.86 "
BEIS,UKAEA,17/06/2019,Engineering Goods,Fusion,Border Technology & Innovations (UK) Ltd,5056678," 1,600.00 "
BEIS,UKAEA,17/06/2019,Professional Services,Other,RCD Lockinge Ltd,5056681," 1,245.40 "
BEIS,UKAEA,17/06/2019,Professional Services,Fusion,RCD Lockinge Ltd,5056681," 17,933.10 "
BEIS,UKAEA,17/06/2019,Professional Services,Other,RCD Lockinge Ltd,5056682," 1,245.40 "
BEIS,UKAEA,17/06/2019,Professional Services,Fusion,RCD Lockinge Ltd,5056682," 17,933.10 "
BEIS,UKAEA,17/06/2019,Professional Services,Fusion,Atkins Nuclear,5056684," 29,682.03 "
BEIS,UKAEA,19/06/2019,Hired Agency Staff - Rullion CMF/PO,Fusion,Rullion Engineering Ltd,5056685," 5,127.00 "
BEIS,UKAEA,19/06/2019,Hired Agency Staff - Rullion CMF/PO,Fusion,Rullion Engineering Ltd,5056686," 4,491.00 "
BEIS,UKAEA,19/06/2019,Hired Agency Staff - Rullion CMF/PO,Fusion,Rullion Engineering Ltd,5056687," 3,730.14 "
BEIS,UKAEA,19/06/2019,Hired Agency Staff - Rullion CMF/PO,Other,Rullion Engineering Ltd,5056688," 10,473.75 "
BEIS,UKAEA,19/06/2019,Hired Agency Staff - Rullion CMF/PO,Other,Rullion Engineering Ltd,5056690," 2,390.40 "
BEIS,UKAEA,19/06/2019,Hired Agency Staff - Rullion CMF/PO,Other,Rullion Engineering Ltd,5056692," 1,771.10 "
BEIS,UKAEA,19/06/2019,Hired Agency Staff - Rullion CMF/PO,Fusion,Rullion Engineering Ltd,5056694," 5,744.18 "
BEIS,UKAEA,19/06/2019,Hired Agency Staff - Rullion CMF/PO,Support Services,Rullion Engineering Ltd,5056695," 5,947.76 "
BEIS,UKAEA,19/06/2019,Hired Agency Staff - Rullion CMF/PO,Fusion,Rullion Engineering Ltd,5056696," 5,254.86 "
BEIS,UKAEA,17/06/2019,Engineering Goods,Fusion,TBS Oxford,5056697, 586.23 
BEIS,UKAEA,19/06/2019,Construction,Other,Midas Construction Limited,5056698," 37,600.80 "
BEIS,UKAEA,19/06/2019,Construction,Other,Midas Construction Limited,5056698," 56,401.20 "
BEIS,UKAEA,19/06/2019,Hired Agency Staff - Rullion CMF/PO,Other,Rullion Engineering Ltd,5056702," 8,560.64 "
BEIS,UKAEA,19/06/2019,Hired Agency Staff - Rullion CMF/PO,Fusion,Rullion Engineering Ltd,5056704," 10,155.12 "
BEIS,UKAEA,19/06/2019,Hired Agency Staff - Rullion CMF/PO,Fusion,Rullion Engineering Ltd,5056705," 6,660.61 "
BEIS,UKAEA,19/06/2019,Hired Agency Staff - Rullion CMF/PO,Property,Rullion Engineering Ltd,5056709," 3,163.50 "
BEIS,UKAEA,19/06/2019,Hired Agency Staff - Rullion CMF/PO,Property,Rullion Engineering Ltd,5056710," 3,785.82 "
BEIS,UKAEA,19/06/2019,Hired Agency Staff - Rullion CMF/PO,Property,Rullion Engineering Ltd,5056711," 8,289.68 "
BEIS,UKAEA,17/06/2019,Engineering Goods,Fusion,Lewvac Components Ltd.,5056712," 21,496.00 "
BEIS,UKAEA,19/06/2019,Hired Agency Staff - Rullion CMF/PO,Fusion,Rullion Engineering Ltd,5056714," 1,765.30 "
BEIS,UKAEA,17/06/2019,Professional Services,Support Services,TWI Ltd,5056715," 10,642.00 "
BEIS,UKAEA,17/06/2019,Professional Services,Property,Faithful+Gould,5056716," 4,228.08 "
BEIS,UKAEA,17/06/2019,Engineering Goods,Fusion,Agar Scientific Ltd.,5056717," 1,720.00 "
BEIS,UKAEA,17/06/2019,Professional Services,Fusion,SA Group Ltd,5056718," 14,602.50 "
BEIS,UKAEA,17/06/2019,Professional Services,Fusion,SA Group Ltd,5056719," 9,369.00 "
BEIS,UKAEA,17/06/2019,Professional Services,Fusion,SA Group Ltd,5056720," 13,972.50 "
BEIS,UKAEA,19/06/2019,Hired Agency Staff - Rullion CMF/PO,Other,Rullion Engineering Ltd,5056722," 4,441.06 "
BEIS,UKAEA,19/06/2019,Hired Agency Staff - Rullion CMF/PO,Fusion,Rullion Engineering Ltd,5056725," 1,285.00 "
BEIS,UKAEA,19/06/2019,Hired Agency Staff - Rullion CMF/PO,Fusion,Rullion Engineering Ltd,5056731," 5,210.73 "
BEIS,UKAEA,19/06/2019,Hired Agency Staff - Rullion CMF/PO,Fusion,Rullion Engineering Ltd,5056732," 3,846.09 "
BEIS,UKAEA,19/06/2019,Hired Agency Staff - Rullion CMF/PO,Fusion,Rullion Engineering Ltd,5056733," 1,768.34 "
BEIS,UKAEA,19/06/2019,Hired Agency Staff - Rullion CMF/PO,Fusion,Rullion Engineering Ltd,5056734, 506.87 
BEIS,UKAEA,19/06/2019,Hired Agency Staff - Rullion CMF/PO,Support Services,Rullion Engineering Ltd,5056735, 903.30 
BEIS,UKAEA,17/06/2019,Waste Management,Fusion,Arco Ltd,5056737," 1,140.00 "
BEIS,UKAEA,19/06/2019,Hired Agency Staff - Rullion CMF/PO,Fusion,Rullion Engineering Ltd,5056740," 2,462.26 "
BEIS,UKAEA,19/06/2019,Hired Agency Staff - Rullion CMF/PO,Fusion,Rullion Engineering Ltd,5056741," 2,943.94 "
BEIS,UKAEA,19/06/2019,Hired Agency Staff - Rullion CMF/PO,Fusion,Rullion Engineering Ltd,5056743," 5,208.40 "
BEIS,UKAEA,19/06/2019,Hired Agency Staff - Rullion CMF/PO,Fusion,Rullion Engineering Ltd,5056744," 4,225.13 "
BEIS,UKAEA,19/06/2019,Hired Agency Staff - Rullion CMF/PO,Fusion,Rullion Engineering Ltd,5056745," 2,447.76 "
BEIS,UKAEA,19/06/2019,Hired Agency Staff - Rullion CMF/PO,Fusion,Rullion Engineering Ltd,5056746," 7,439.16 "
BEIS,UKAEA,17/06/2019,Engineering Goods,Fusion,Altitude Safety Limited,5056747, 550.00 
BEIS,UKAEA,19/06/2019,Hired Agency Staff - Rullion CMF/PO,Fusion,Rullion Engineering Ltd,5056748," 3,160.72 "
BEIS,UKAEA,19/06/2019,Professional Services,Fusion,Nuvia Limited,5056750," 5,519.00 "
BEIS,UKAEA,19/06/2019,Hired Agency Staff - Rullion CMF/PO,Support Services,Rullion Engineering Ltd,5056751," 3,619.54 "
BEIS,UKAEA,17/06/2019,Professional Services,Fusion,SA Group Ltd,5056754," 14,107.50 "
BEIS,UKAEA,19/06/2019,Hired Agency Staff - Rullion CMF/PO,Fusion,Rullion Engineering Ltd,5056755, 832.80 
BEIS,UKAEA,19/06/2019,Hired Agency Staff - Rullion CMF/PO,Fusion,Rullion Engineering Ltd,5056758," 5,113.68 "
BEIS,UKAEA,17/06/2019,ICT,Property,Liftshare.Com Ltd,5056759," 4,275.86 "
BEIS,UKAEA,19/06/2019,Hired Agency Staff - Rullion CMF/PO,Fusion,Rullion Engineering Ltd,5056760," 7,312.94 "
BEIS,UKAEA,17/06/2019,Engineering Goods,Fusion,Fluidic Northern,5056761," 1,206.64 "
BEIS,UKAEA,17/06/2019,Professional Services,Fusion,Socotec UK Limited,5056762," 7,134.74 "
BEIS,UKAEA,17/06/2019,Engineering Goods,Fusion,Screwfix Direct Ltd,5056764," 1,119.28 "
BEIS,UKAEA,21/06/2019,Engineering Goods,Fusion,Wesgo Ceramics GmbH,5056765, 848.96 
BEIS,UKAEA,19/06/2019,Hired Agency Staff - Rullion CMF/PO,Fusion,Rullion Engineering Ltd,5056768," 6,399.64 "
BEIS,UKAEA,19/06/2019,Hired Agency Staff - Rullion CMF/PO,Fusion,Rullion Engineering Ltd,5056769," 4,534.35 "
BEIS,UKAEA,19/06/2019,Hired Agency Staff - Rullion CMF/PO,Other,Rullion Engineering Ltd,5056770," 8,019.00 "
BEIS,UKAEA,19/06/2019,Hired Agency Staff - Rullion CMF/PO,Other,Rullion Engineering Ltd,5056771," 8,462.57 "
BEIS,UKAEA,19/06/2019,Hired Agency Staff - Rullion CMF/PO,Other,Rullion Engineering Ltd,5056772," 7,027.80 "
BEIS,UKAEA,19/06/2019,Hired Agency Staff - Rullion CMF/PO,Support Services,Rullion Engineering Ltd,5056773," 10,643.29 "
BEIS,UKAEA,19/06/2019,Hired Agency Staff - Rullion CMF/PO,Fusion,Rullion Engineering Ltd,5056774," 2,412.80 "
BEIS,UKAEA,19/06/2019,Hired Agency Staff - Rullion CMF/PO,Fusion,Rullion Engineering Ltd,5056776," 4,540.87 "
BEIS,UKAEA,19/06/2019,Hired Agency Staff - Rullion CMF/PO,Fusion,Rullion Engineering Ltd,5056778," 5,910.45 "
BEIS,UKAEA,19/06/2019,Hired Agency Staff - Rullion CMF/PO,Fusion,Rullion Engineering Ltd,5056779," 4,316.32 "
BEIS,UKAEA,19/06/2019,Hired Agency Staff - Rullion CMF/PO,Fusion,Rullion Engineering Ltd,5056780," 5,185.52 "
BEIS,UKAEA,19/06/2019,Hired Agency Staff - Rullion CMF/PO,Fusion,Rullion Engineering Ltd,5056781," 4,568.20 "
BEIS,UKAEA,19/06/2019,Hired Agency Staff - Rullion CMF/PO,Support Services,Rullion Engineering Ltd,5056782," 2,714.25 "
BEIS,UKAEA,19/06/2019,Hired Agency Staff - Rullion CMF/PO,Fusion,Rullion Engineering Ltd,5056783," 3,807.00 "
BEIS,UKAEA,19/06/2019,Hired Agency Staff - Rullion CMF/PO,Fusion,Rullion Engineering Ltd,5056784," 4,902.30 "
BEIS,UKAEA,19/06/2019,Hired Agency Staff - Rullion CMF/PO,Fusion,Rullion Engineering Ltd,5056785," 3,023.89 "
BEIS,UKAEA,17/06/2019,Operational Goods,Fusion,Arco Ltd,5056788," 2,850.00 "
BEIS,UKAEA,17/06/2019,Operational Goods,Fusion,Arco Ltd,5056789, 810.00 
BEIS,UKAEA,19/06/2019,Hired Agency Staff - Rullion CMF/PO,Fusion,Rullion Engineering Ltd,5056795," 1,425.00 "
BEIS,UKAEA,17/06/2019,Waste Management,Property,Grundon Waste Management Ltd,5056796, 745.28 
BEIS,UKAEA,17/06/2019,Waste Management,Fusion,Grundon Waste Management Ltd,5056799, 650.75 
BEIS,UKAEA,17/06/2019,ICT,Support Services,BCS Learning & Development,5056800," 3,760.00 "
BEIS,UKAEA,17/06/2019,Engineering Goods,Fusion,Fluidic Northern,5056803," 4,973.10 "
BEIS,UKAEA,19/06/2019,Hired Agency Staff - Rullion CMF/PO,Fusion,Rullion Engineering Ltd,5056804," 1,941.41 "
BEIS,UKAEA,17/06/2019,Engineering Goods,Fusion,Fluidic Northern,5056806," 1,610.60 "
BEIS,UKAEA,17/06/2019,Engineering Goods,Other,Maxon Motor UK Ltd,5056809," 1,341.95 "
BEIS,UKAEA,17/06/2019,Personnel Related,Support Services,Sundry Supplier,5056811," 5,023.68 "
BEIS,UKAEA,17/06/2019,Engineering Goods,Other,Hepco Slide Systems Ltd,5056819, 645.37 
BEIS,UKAEA,17/06/2019,Professional Services,Support Services,Arthur J Gallagher Insurance Brokers Limited,5056820," 9,680.06 "
BEIS,UKAEA,17/06/2019,Professional Services,Support Services,Arthur J Gallagher Insurance Brokers Limited,5056821," 3,030.00 "
BEIS,UKAEA,17/06/2019,Professional Services,Support Services,Arthur J Gallagher Insurance Brokers Limited,5056822," 12,500.00 "
BEIS,UKAEA,17/06/2019,Professional Services,Support Services,Arthur J Gallagher Insurance Brokers Limited,5056823," 20,148.02 "
BEIS,UKAEA,17/06/2019,Professional Services,Support Services,Arthur J Gallagher Insurance Brokers Limited,5056824," 26,611.20 "
BEIS,UKAEA,17/06/2019,Professional Services,Support Services,Arthur J Gallagher Insurance Brokers Limited,5056825," 22,400.00 "
BEIS,UKAEA,17/06/2019,Professional Services,Support Services,Arthur J Gallagher Insurance Brokers Limited,5056826," 10,063.20 "
BEIS,UKAEA,17/06/2019,Professional Services,Support Services,Arthur J Gallagher Insurance Brokers Limited,5056827," 1,400.00 "
BEIS,UKAEA,17/06/2019,Professional Services,Support Services,Arthur J Gallagher Insurance Brokers Limited,5056828, 957.80 
BEIS,UKAEA,19/06/2019,Hired Agency Staff - Rullion CMF/PO,Support Services,Rullion Engineering Ltd,5056829," 7,531.45 "
BEIS,UKAEA,17/06/2019,Engineering Goods,Fusion,J & E Hall Ltd.,5056834," 1,008.34 "
BEIS,UKAEA,19/06/2019,Hired Agency Staff - Rullion CMF/PO,Fusion,Rullion Engineering Ltd,5056835," 2,291.45 "
BEIS,UKAEA,17/06/2019,Engineering Goods,Fusion,Reaction Engines Manufacturing Solutons Division,5056836, 680.00 
BEIS,UKAEA,17/06/2019,Communications,Fusion,Finetuned Limited,5056837," 10,550.00 "
BEIS,UKAEA,17/06/2019,Facilities,Property,South Oxfordshire District Council,5056839," 67,536.00 "
BEIS,UKAEA,17/06/2019,Facilities,Property,South Oxfordshire District Council,5056840," 121,788.00 "
BEIS,UKAEA,19/06/2019,Hired Agency Staff - Rullion CMF/PO,Other,Rullion Engineering Ltd,5056843," 5,761.14 "
BEIS,UKAEA,17/06/2019,Other External Costs,Support Services,Paymaster (1836) Ltd RE:UKAEA Recharges,5056844," 11,516.29 "
BEIS,UKAEA,17/06/2019,Energy and Fuels,Property,EDF Energy,5056846," 4,623.55 "
BEIS,UKAEA,17/06/2019,Energy and Fuels,Property,EDF Energy,5056847," 2,857.60 "
BEIS,UKAEA,17/06/2019,Energy and Fuels,Property,EDF Energy,5056849," 2,226.90 "
BEIS,UKAEA,17/06/2019,Energy and Fuels,Property,EDF Energy,5056850," 26,848.27 "
BEIS,UKAEA,17/06/2019,Energy and Fuels,Property,EDF Energy,5056851, 666.40 
BEIS,UKAEA,17/06/2019,Energy and Fuels,Property,EDF Energy,5056854, 573.87 
BEIS,UKAEA,17/06/2019,Energy and Fuels,Property,EDF Energy,5056856," 39,026.26 "
BEIS,UKAEA,17/06/2019,Energy and Fuels,Property,EDF Energy,5056857, 829.48 
BEIS,UKAEA,17/06/2019,Facilities,Property,Securitas Security Services,5056861," 1,205.46 "
BEIS,UKAEA,17/06/2019,Energy and Fuels,Property,EDF Energy,5056863, 823.55 
BEIS,UKAEA,17/06/2019,Energy and Fuels,Property,EDF Energy,5056866," 37,238.06 "
BEIS,UKAEA,17/06/2019,Energy and Fuels,Property,EDF Energy,5056867," 4,947.74 "
BEIS,UKAEA,17/06/2019,Learning and Development,Fusion,The Institute Of Chemical Engineers,5056869," 9,300.00 "
BEIS,UKAEA,17/06/2019,Engineering Goods,Fusion,Phoenix Dosimetry Ltd,5056870," 1,250.00 "
BEIS,UKAEA,17/06/2019,Engineering Goods,Fusion,Fastfix Bristol Ltd,5056872, 540.65 
BEIS,UKAEA,17/06/2019,Professional Services,Other,Ridge And Partners Llp,5056874," 2,383.00 "
BEIS,UKAEA,17/06/2019,Learning and Development,Support Services,GP Strategies Ltd.,5056876," 2,975.40 "
BEIS,UKAEA,19/06/2019,Personnel Related,Fusion,Nuvia Limited,5056877," 21,785.39 "
BEIS,UKAEA,17/06/2019,Engineering Goods,Other,Kuka Systems UK Ltd,5056878," 59,900.00 "
BEIS,UKAEA,17/06/2019,Engineering Goods,Fusion,Garner Osbourne Circuits Ltd,5056879," 1,380.00 "
BEIS,UKAEA,17/06/2019,Engineering Goods,Other,Thermo Fisher Scientific,5056880," 2,593.35 "
BEIS,UKAEA,19/06/2019,Hired Agency Staff - Rullion CMF/PO,Fusion,Rullion Engineering Ltd,5056881," 6,207.26 "
BEIS,UKAEA,19/06/2019,Professional Services,Fusion,Cavendish Nuclear Limited,5056882," 42,013.47 "
BEIS,UKAEA,17/06/2019,Professional Services,Fusion,Socotec UK Ltd,5056883," 1,406.25 "
BEIS,UKAEA,17/06/2019,Engineering Goods,Fusion,Fortress Interlocks Ltd,5056884," 1,445.00 "
BEIS,UKAEA,17/06/2019,Engineering Goods,Fusion,Hilti GB Ltd,5056888," 1,157.56 "
BEIS,UKAEA,20/06/2019,Engineering Goods,Fusion,Elmo Motion Control Limited,5056889," 8,237.94 "
BEIS,UKAEA,17/06/2019,Engineering Goods,Fusion,Metspin Ltd,5056892, 771.50 
BEIS,UKAEA,17/06/2019,Engineering Goods,Fusion,Metspin Ltd,5056893, 520.00 
BEIS,UKAEA,24/06/2019,Engineering Goods,Other,P-Card Supplier,5056896, 538.07 
BEIS,UKAEA,24/06/2019,Engineering Goods,Other,P-Card Supplier,5056896, 649.20 
BEIS,UKAEA,17/06/2019,Learning and Development,Support Services,GP Strategies Ltd.,5056897," 10,800.00 "
BEIS,UKAEA,21/06/2019,Office Solutions,Fusion,IOP Publishing Ltd - EUR,5056898," 1,666.63 "
BEIS,UKAEA,17/06/2019,Engineering Goods,Fusion,ABB Ltd,5056899," 3,972.00 "
BEIS,UKAEA,17/06/2019,Engineering Goods,Fusion,ABB Ltd,5056900," 7,944.00 "
BEIS,UKAEA,17/06/2019,Professional Services,Support Services,Arthur J Gallagher Insurance Brokers Limited,5056906," 275,352.00 "
BEIS,UKAEA,21/06/2019,Office Solutions,Fusion,IOP Publishing Ltd - EUR,5056908," 1,222.19 "
BEIS,UKAEA,19/06/2019,Hired Agency Staff - Rullion CMF/PO,Other,Rullion Engineering Ltd,5056909," 3,759.40 "
BEIS,UKAEA,17/06/2019,Engineering Goods,Fusion,Forward 2000 Ltd,5056911," 9,023.89 "
BEIS,UKAEA,17/06/2019,Professional Services,Fusion,Tessella Ltd,5056913," 11,531.10 "
BEIS,UKAEA,17/06/2019,Professional Services,Fusion,Queens University Belfast,5056916," 24,086.58 "
BEIS,UKAEA,19/06/2019,Hired Agency Staff - Rullion CMF/PO,Other,Rullion Engineering Ltd,5056919," 1,182.97 "
BEIS,UKAEA,19/06/2019,Hired Agency Staff - Rullion CMF/PO,Other,Rullion Engineering Ltd,5056920," 4,431.90 "
BEIS,UKAEA,19/06/2019,Hired Agency Staff - Rullion CMF/PO,Fusion,Rullion Engineering Ltd,5056921," 4,414.45 "
BEIS,UKAEA,19/06/2019,Hired Agency Staff - Rullion CMF/PO,Other,Rullion Engineering Ltd,5056923," 3,613.05 "
BEIS,UKAEA,19/06/2019,Hired Agency Staff - Rullion CMF/PO,Other,Rullion Engineering Ltd,5056924," 3,906.00 "
BEIS,UKAEA,19/06/2019,Hired Agency Staff - Rullion CMF/PO,Fusion,Rullion Engineering Ltd,5056925," 9,426.72 "
BEIS,UKAEA,19/06/2019,Hired Agency Staff - Rullion CMF/PO,Fusion,Rullion Engineering Ltd,5056927," 10,777.14 "
BEIS,UKAEA,19/06/2019,Hired Agency Staff - Rullion CMF/PO,Fusion,Rullion Engineering Ltd,5056928," 3,542.19 "
BEIS,UKAEA,17/06/2019,Professional Services,Fusion,Queens University Belfast,5056932,"-49,341.89 "
BEIS,UKAEA,17/06/2019,Professional Services,Fusion,Queens University Belfast,5056935," 41,118.24 "
BEIS,UKAEA,19/06/2019,Hired Agency Staff - Rullion CMF/PO,Support Services,Rullion Engineering Ltd,5056936," 10,931.89 "
BEIS,UKAEA,17/06/2019,Personnel Related,Support Services,Nuclear Industry Association,5056937," 2,455.00 "
BEIS,UKAEA,17/06/2019,Professional Services,Fusion,Ultra Electronics Ncs,5056940," 6,389.00 "
BEIS,UKAEA,19/06/2019,Hired Agency Staff - Rullion CMF/PO,Support Services,Rullion Engineering Ltd,5056942," 7,460.05 "
BEIS,UKAEA,19/06/2019,Hired Agency Staff - Rullion CMF/PO,Fusion,Rullion Engineering Ltd,5056943," 4,487.69 "
BEIS,UKAEA,17/06/2019,Waste Management,Fusion,Hills Waste Solutions Ltd,5056948," 4,511.58 "
BEIS,UKAEA,17/06/2019,Facilities,Fusion,OCS Cleaning & Support Services,5056949," 2,703.84 "
BEIS,UKAEA,19/06/2019,Hired Agency Staff - Rullion CMF/PO,Fusion,Rullion Engineering Ltd,5056950," 1,595.88 "
BEIS,UKAEA,19/06/2019,Hired Agency Staff - Rullion CMF/PO,Fusion,Rullion Engineering Ltd,5056951," 5,457.15 "
BEIS,UKAEA,17/06/2019,Facilities,Fusion,OCS Cleaning & Support Services,5056952, 781.68 
BEIS,UKAEA,17/06/2019,Facilities,Property,OCS Cleaning & Support Services,5056952," 2,112.08 "
BEIS,UKAEA,17/06/2019,Learning and Development,Fusion,Imperial College London - GBP,5056953," 2,000.00 "
BEIS,UKAEA,17/06/2019,Professional Services,Fusion,Queens University Belfast,5056954," 35,315.32 "
BEIS,UKAEA,17/06/2019,ICT,Fusion,Scan Computers International Ltd,5056955," 1,789.74 "
BEIS,UKAEA,17/06/2019,ICT,Fusion,Dell Corporation Ltd,5056956," 1,438.00 "
BEIS,UKAEA,17/06/2019,ICT,Fusion,Dell Corporation Ltd,5056959," 6,164.55 "
BEIS,UKAEA,19/06/2019,Hired Agency Staff - Rullion CMF/PO,Support Services,Rullion Engineering Ltd,5056962," 1,817.03 "
BEIS,UKAEA,19/06/2019,Hired Agency Staff - Rullion CMF/PO,Support Services,Rullion Engineering Ltd,5056963," 4,146.64 "
BEIS,UKAEA,19/06/2019,Hired Agency Staff - Rullion CMF/PO,Support Services,Rullion Engineering Ltd,5056964," 4,394.90 "
BEIS,UKAEA,19/06/2019,Hired Agency Staff - Rullion CMF/PO,Fusion,Rullion Engineering Ltd,5056966," 4,237.48 "
BEIS,UKAEA,19/06/2019,Professional Services,Fusion,British Engineering Services Ltd,5056968," 3,415.50 "
BEIS,UKAEA,19/06/2019,Professional Services,Fusion,Applus UK Ltd,5056971, 524.25 
BEIS,UKAEA,19/06/2019,Engineering Goods,Fusion,Edm Precision Technologies Ltd,5056974, 579.00 
BEIS,UKAEA,19/06/2019,Facilities,Property,Securitas Security Services,5056979," 3,515.40 "
BEIS,UKAEA,19/06/2019,Facilities,Property,Securitas Security Services,5056980,"-2,871.14 "
BEIS,UKAEA,19/06/2019,Office Solutions,Support Services,Fulton Paper,5056981," 2,250.00 "
BEIS,UKAEA,19/06/2019,Office Solutions,Support Services,Oxford Duplication Centre,5056983," 1,286.40 "
BEIS,UKAEA,19/06/2019,Office Solutions,Support Services,Zuna Web Limited,5056985, 765.00 
BEIS,UKAEA,19/06/2019,Office Solutions,Support Services,Zuna Web Limited,5056986, 573.75 
BEIS,UKAEA,19/06/2019,Office Solutions,Support Services,Premier Paper Group Ltd,5056990, 549.00 
BEIS,UKAEA,19/06/2019,Office Solutions,Fusion,Lyreco UK Limited,5056992, 743.14 
BEIS,UKAEA,24/06/2019,Engineering Goods,Other,P-Card Supplier,5056995, 523.06 
BEIS,UKAEA,24/06/2019,Engineering Goods,Fusion,P-Card Supplier,5056995, 816.12 
BEIS,UKAEA,19/06/2019,ICT,Fusion,SM Systems UK Ltd,5056998," 1,522.00 "
BEIS,UKAEA,19/06/2019,Research,Fusion,University of Bristol,5056999," 14,221.50 "
BEIS,UKAEA,19/06/2019,Learning and Development,Fusion,EEF Ltd,5057001," 2,895.00 "
BEIS,UKAEA,19/06/2019,Facilities,Other,Portakabin Ltd,5057003," 1,750.64 "
BEIS,UKAEA,19/06/2019,Hired Agency Staff - Rullion CMF/PO,Fusion,Rullion Engineering Ltd,5057005," 3,536.00 "
BEIS,UKAEA,19/06/2019,Hired Agency Staff - Rullion CMF/PO,Support Services,Rullion Engineering Ltd,5057006," 2,299.52 "
BEIS,UKAEA,19/06/2019,Engineering Goods,Fusion,Eland Cables,5057009, 705.00 
BEIS,UKAEA,24/06/2019,Travel,Fusion,P-Card Supplier,5057014, 514.04 
BEIS,UKAEA,24/06/2019,Travel,Fusion,P-Card Supplier,5057014, 520.36 
BEIS,UKAEA,24/06/2019,Travel,Fusion,P-Card Supplier,5057014, 534.35 
BEIS,UKAEA,24/06/2019,Travel,Fusion,P-Card Supplier,5057014, 534.35 
BEIS,UKAEA,24/06/2019,Travel,Other,P-Card Supplier,5057014, 534.35 
BEIS,UKAEA,19/06/2019,Engineering Goods,Fusion,RS Components Ltd,5057016, 505.25 
BEIS,UKAEA,19/06/2019,Professional Services,Support Services,Afnor UK Ltd,5057017," 6,134.77 "
BEIS,UKAEA,19/06/2019,Engineering Goods,Fusion,Fluidic Northern,5057019," 1,399.62 "
BEIS,UKAEA,19/06/2019,Travel,Fusion,Rullion Engineering Ltd,5057022," 1,470.55 "
BEIS,UKAEA,19/06/2019,ICT,Fusion,RS Components Ltd,5057025, 577.08 
BEIS,UKAEA,19/06/2019,Engineering Goods,Fusion,Pfeiffer Vacuum UK,5057028," 4,585.95 "
BEIS,UKAEA,19/06/2019,Engineering Goods,Fusion,Rapid Racking Ltd,5057029," 2,158.40 "
BEIS,UKAEA,20/06/2019,Professional Services,Fusion,Trasys International G E I E,5057032," 8,552.85 "
BEIS,UKAEA,19/06/2019,Personnel Related,Fusion,Nuvia Limited,5057037," 26,255.47 "
BEIS,UKAEA,19/06/2019,Engineering Goods,Fusion,Optimum Group Services plc,5057038," 43,683.84 "
BEIS,UKAEA,20/06/2019,Professional Services,Fusion,Trasys International G E I E,5057053," 7,184.63 "
BEIS,UKAEA,19/06/2019,Office Solutions,Other,Kyocera Document Solutions (U.K) Ltd.,5057055," 11,554.65 "
BEIS,UKAEA,19/06/2019,Professional Services,Other,Frazer Nash Consultancy,5057057," 17,763.47 "
BEIS,UKAEA,19/06/2019,Engineering Goods,Fusion,Grey Matter Limited,5057060," 3,581.65 "
BEIS,UKAEA,21/06/2019,Professional Services,Other,WITec-Wissenschaftliche Instrumente und Technologie GmBH,5057062," 1,055.02 "
BEIS,UKAEA,19/06/2019,Hired Agency Staff - Rullion CMF/PO,Fusion,Rullion Engineering Ltd,5057066," 4,385.65 "
BEIS,UKAEA,19/06/2019,Hired Agency Staff - Rullion CMF/PO,Fusion,Rullion Engineering Ltd,5057068," 1,609.34 "
BEIS,UKAEA,19/06/2019,Hired Agency Staff - Rullion CMF/PO,Other,Rullion Engineering Ltd,5057069," 1,754.03 "
BEIS,UKAEA,19/06/2019,Hired Agency Staff - Rullion CMF/PO,Fusion,Rullion Engineering Ltd,5057070," 1,970.82 "
BEIS,UKAEA,19/06/2019,Hired Agency Staff - Rullion CMF/PO,Support Services,Rullion Engineering Ltd,5057071," 6,583.52 "
BEIS,UKAEA,19/06/2019,Hired Agency Staff - Rullion CMF/PO,Support Services,Rullion Engineering Ltd,5057073," 10,065.46 "
BEIS,UKAEA,19/06/2019,Hired Agency Staff - Rullion CMF/PO,Fusion,Rullion Engineering Ltd,5057074, 894.35 
BEIS,UKAEA,19/06/2019,Hired Agency Staff - Rullion CMF/PO,Fusion,Rullion Engineering Ltd,5057075," 11,434.50 "
BEIS,UKAEA,19/06/2019,Construction,Property,PMS Oxford Construction Services,5057076," 1,497.99 "
BEIS,UKAEA,19/06/2019,ICT,Support Services,Unit 4 Business Software,5057077," 36,625.00 "
BEIS,UKAEA,19/06/2019,Facilities,Property,Ice Roofing & Cladding Ltd.,5057078," 2,902.73 "
BEIS,UKAEA,19/06/2019,Hired Agency Staff - Rullion CMF/PO,Support Services,Rullion Engineering Ltd,5057081," 10,978.49 "
BEIS,UKAEA,19/06/2019,Construction,Property,PMS Oxford Construction Services,5057083," 1,458.41 "
BEIS,UKAEA,19/06/2019,Construction,Fusion,PMS Oxford Construction Services,5057083," 7,116.45 "
BEIS,UKAEA,19/06/2019,Construction,Property,PMS Oxford Construction Services,5057083," 7,841.49 "
BEIS,UKAEA,19/06/2019,Construction,Property,PMS Oxford Construction Services,5057083," 19,197.43 "
BEIS,UKAEA,19/06/2019,Construction,Property,PMS Oxford Construction Services,5057084," 1,388.98 "
BEIS,UKAEA,19/06/2019,Facilities,Fusion,Trinity Fire & Security Systems Ltd,5057085, 850.82 
BEIS,UKAEA,19/06/2019,Facilities,Fusion,Trinity Fire & Security Systems Ltd,5057086," 1,166.00 "
BEIS,UKAEA,19/06/2019,Facilities,Property,Insulation Contracting Services Ltd,5057089, 549.59 
BEIS,UKAEA,19/06/2019,Facilities,Property,Insulation Contracting Services Ltd,5057092," 7,928.10 "
BEIS,UKAEA,19/06/2019,Facilities,Property,Insulation Contracting Services Ltd,5057093," 1,889.19 "
BEIS,UKAEA,19/06/2019,Hired Agency Staff - Rullion CMF/PO,Fusion,Rullion Engineering Ltd,5057095," 1,852.40 "
BEIS,UKAEA,19/06/2019,Hired Agency Staff - Rullion CMF/PO,Fusion,Rullion Engineering Ltd,5057096," 5,725.54 "
BEIS,UKAEA,19/06/2019,Travel,Support Services,Flightlink Executive Travel Ltd,5057097," 5,862.63 "
BEIS,UKAEA,19/06/2019,Engineering Goods,Fusion,Ind-Tech Ltd,5057099, 562.08 
BEIS,UKAEA,19/06/2019,Hired Agency Staff - Rullion CMF/PO,Fusion,Rullion Engineering Ltd,5057100," 5,288.79 "
BEIS,UKAEA,19/06/2019,Hired Agency Staff - Rullion CMF/PO,Other,Rullion Engineering Ltd,5057101," 2,462.26 "
BEIS,UKAEA,19/06/2019,Hired Agency Staff - Rullion CMF/PO,Other,Rullion Engineering Ltd,5057102," 2,324.25 "
BEIS,UKAEA,19/06/2019,Hired Agency Staff - Rullion CMF/PO,Support Services,Rullion Engineering Ltd,5057103," 7,449.30 "
BEIS,UKAEA,19/06/2019,Hired Agency Staff - Rullion CMF/PO,Other,Rullion Engineering Ltd,5057106," 4,909.14 "
BEIS,UKAEA,19/06/2019,Office Solutions,Support Services,Smart R Distribution Ltd,5057110," 3,089.00 "
BEIS,UKAEA,19/06/2019,Fleet,Fusion,ALD Automotive Ltd. T/A Ford Lease,5057111," 5,288.15 "
BEIS,UKAEA,19/06/2019,Office Solutions,Other,Sundry Supplier,5057112," 2,097.00 "
BEIS,UKAEA,19/06/2019,Operational Goods,Fusion,Arco Ltd,5057113, 873.40 
BEIS,UKAEA,24/06/2019,Engineering Goods,Other,Hepco Slide Systems Ltd,5057118," 2,202.57 "
BEIS,UKAEA,24/06/2019,Facilities,Property,Securitas Security Services,5057121," 2,871.14 "
BEIS,UKAEA,24/06/2019,ICT,Support Services,Cemar,5057123," 2,450.00 "
BEIS,UKAEA,26/06/2019,Hired Agency Staff - Rullion CMF/PO,Fusion,Rullion Engineering Ltd,5057125," 5,343.62 "
BEIS,UKAEA,26/06/2019,Hired Agency Staff - Rullion CMF/PO,Support Services,Rullion Engineering Ltd,5057128," 2,785.30 "
BEIS,UKAEA,26/06/2019,Hired Agency Staff - Rullion CMF/PO,Support Services,Rullion Engineering Ltd,5057130," 1,089.90 "
BEIS,UKAEA,24/06/2019,Facilities,Property,Baxter Storey Ltd.,5057131, 840.77 
BEIS,UKAEA,24/06/2019,Energy and Fuels,Property,Corona Energy Retail 4 Limited,5057132," 24,023.33 "
BEIS,UKAEA,26/06/2019,Hired Agency Staff - Rullion CMF/PO,Support Services,Rullion Engineering Ltd,5057136, 844.25 
BEIS,UKAEA,26/06/2019,Hired Agency Staff - Rullion CMF/PO,Fusion,Rullion Engineering Ltd,5057138," 1,270.35 "
BEIS,UKAEA,26/06/2019,Professional Services,Fusion,Cavendish Nuclear Limited,5057143," 22,413.34 "
BEIS,UKAEA,26/06/2019,Professional Services,Fusion,Cavendish Nuclear Limited,5057144," 12,522.69 "
BEIS,UKAEA,24/06/2019,Professional Services,Fusion,Pelican Software Ltd,5057145," 5,124.33 "
BEIS,UKAEA,24/06/2019,Professional Services,Fusion,Pelican Software Ltd,5057153," 4,595.40 "
BEIS,UKAEA,26/06/2019,Hired Agency Staff - Rullion CMF/PO,Fusion,Rullion Engineering Ltd,5057156," 3,643.66 "
BEIS,UKAEA,24/06/2019,Engineering Goods,Fusion,GEMS Sensors & Controls,5057158," 1,839.42 "
BEIS,UKAEA,24/06/2019,Engineering Goods,Fusion,GEMS Sensors & Controls,5057159," 1,226.28 "
BEIS,UKAEA,24/06/2019,Engineering Goods,Fusion,GEMS Sensors & Controls,5057160," 1,226.28 "
BEIS,UKAEA,26/06/2019,Hired Agency Staff - Rullion CMF/PO,Support Services,Rullion Engineering Ltd,5057161," 8,398.81 "
BEIS,UKAEA,24/06/2019,Engineering Goods,Fusion,GEMS Sensors & Controls,5057162," 3,065.70 "
BEIS,UKAEA,21/06/2019,Office Solutions,Fusion,IOP Publishing Ltd - EUR,5057168, 777.76 
BEIS,UKAEA,21/06/2019,Office Solutions,Fusion,IOP Publishing Ltd - EUR,5057171," 1,777.73 "
BEIS,UKAEA,21/06/2019,Office Solutions,Fusion,IOP Publishing Ltd - EUR,5057172," 1,999.95 "
BEIS,UKAEA,21/06/2019,Office Solutions,Fusion,IOP Publishing Ltd - EUR,5057174," 1,888.84 "
BEIS,UKAEA,24/06/2019,ICT,Support Services,Cisco Systems Finance International,5057182," 3,306.13 "
BEIS,UKAEA,24/06/2019,Personnel Related,Fusion,People Asset Management Ltd,5057188," 1,814.00 "
BEIS,UKAEA,24/06/2019,Personnel Related,Fusion,Medigold Health Consultancy Ltd,5057189," 1,310.50 "
BEIS,UKAEA,24/06/2019,Personnel Related,Fusion,Webrecruit,5057191, 665.00 
BEIS,UKAEA,24/06/2019,Office Solutions,Support Services,Annodata Business Communications,5057195," 1,406.44 "
BEIS,UKAEA,24/06/2019,Office Solutions,Other,Kyocera Document Solutions (U.K) Ltd.,5057196," 5,839.37 "
BEIS,UKAEA,26/06/2019,Hired Agency Staff - Rullion CMF/PO,Fusion,Rullion Engineering Ltd,5057198," 2,104.14 "
BEIS,UKAEA,24/06/2019,Engineering Goods,Fusion,Flexible Reinforcement Limited,5057201," 1,785.00 "
BEIS,UKAEA,24/06/2019,Engineering Goods,Fusion,RS Components Ltd,5057204, 878.75 
BEIS,UKAEA,26/06/2019,Hired Agency Staff - Rullion CMF/PO,Other,Rullion Engineering Ltd,5057206," 5,224.18 "
BEIS,UKAEA,26/06/2019,Hired Agency Staff - Rullion CMF/PO,Other,Rullion Engineering Ltd,5057207," 4,679.49 "
BEIS,UKAEA,24/06/2019,Facilities,Property,Securitas Security Services,5057208," 3,378.99 "
BEIS,UKAEA,24/06/2019,Facilities,Property,Securitas Security Services,5057208," 4,487.29 "
BEIS,UKAEA,24/06/2019,Facilities,Property,Securitas Security Services,5057208," 8,248.16 "
BEIS,UKAEA,24/06/2019,Facilities,Property,Securitas Security Services,5057208," 21,249.08 "
BEIS,UKAEA,24/06/2019,Facilities,Property,Securitas Security Services,5057208," 59,723.96 "
BEIS,UKAEA,26/06/2019,Hired Agency Staff - Rullion CMF/PO,Property,Rullion Engineering Ltd,5057209," 7,904.64 "
BEIS,UKAEA,26/06/2019,Hired Agency Staff - Rullion CMF/PO,Fusion,Rullion Engineering Ltd,5057214," 4,834.48 "
BEIS,UKAEA,27/06/2019,Engineering Goods,Other,WITec-Wissenschaftliche Instrumente und Technologie GmBH,5057217," 1,647.11 "
BEIS,UKAEA,24/06/2019,Professional Services,Fusion,Sundry Supplier,5057231," 2,430.00 "
BEIS,UKAEA,24/06/2019,Engineering Goods,Other,Sundry Supplier,5057232," 2,402.00 "
BEIS,UKAEA,24/06/2019,Engineering Goods,Other,Machining Techology (Mach-Tech) Ltd,5057233," 1,734.27 "
BEIS,UKAEA,24/06/2019,Engineering Goods,Other,Machining Techology (Mach-Tech) Ltd,5057234," 4,519.71 "
BEIS,UKAEA,24/06/2019,Engineering Goods,Other,Machining Techology (Mach-Tech) Ltd,5057236, 636.88 
BEIS,UKAEA,24/06/2019,Engineering Goods,Other,Machining Techology (Mach-Tech) Ltd,5057237, 565.39 
BEIS,UKAEA,24/06/2019,Engineering Goods,Other,Machining Techology (Mach-Tech) Ltd,5057238," 2,057.24 "
BEIS,UKAEA,24/06/2019,Engineering Goods,Other,Machining Techology (Mach-Tech) Ltd,5057239," 1,812.36 "
BEIS,UKAEA,24/06/2019,Engineering Goods,Other,Machining Techology (Mach-Tech) Ltd,5057240, 507.54 
BEIS,UKAEA,24/06/2019,Engineering Goods,Other,Machining Techology (Mach-Tech) Ltd,5057241," 1,654.24 "
BEIS,UKAEA,24/06/2019,Engineering Goods,Other,Machining Techology (Mach-Tech) Ltd,5057242," 1,368.63 "
BEIS,UKAEA,24/06/2019,Communications,Support Services,Pageone Communications Ltd,5057246, 535.58 
BEIS,UKAEA,26/06/2019,Hired Agency Staff - Rullion CMF/PO,Fusion,Rullion Engineering Ltd,5057247, 895.47 
BEIS,UKAEA,26/06/2019,Hired Agency Staff - Rullion CMF/PO,Fusion,Rullion Engineering Ltd,5057248," 3,941.44 "
BEIS,UKAEA,26/06/2019,Hired Agency Staff - Rullion CMF/PO,Fusion,Rullion Engineering Ltd,5057249," 3,107.78 "
BEIS,UKAEA,26/06/2019,Hired Agency Staff - Rullion CMF/PO,Other,Rullion Engineering Ltd,5057256," 8,862.48 "
BEIS,UKAEA,24/06/2019,Professional Services,Fusion,Socotec UK Ltd,5057260," 2,400.00 "
BEIS,UKAEA,27/06/2019,Engineering Goods,Fusion,Magnetrol International NV,5057261, 863.30 
BEIS,UKAEA,24/06/2019,Facilities,Property,Securitas Security Services,5057264," 3,378.99 "
BEIS,UKAEA,24/06/2019,Facilities,Property,Securitas Security Services,5057264," 4,487.29 "
BEIS,UKAEA,24/06/2019,Facilities,Property,Securitas Security Services,5057264," 8,248.16 "
BEIS,UKAEA,24/06/2019,Facilities,Property,Securitas Security Services,5057264," 21,249.08 "
BEIS,UKAEA,24/06/2019,Facilities,Property,Securitas Security Services,5057264," 59,723.96 "
BEIS,UKAEA,24/06/2019,Facilities,Property,Securitas Security Services,5057265," 3,378.99 "
BEIS,UKAEA,24/06/2019,Facilities,Property,Securitas Security Services,5057265," 4,487.29 "
BEIS,UKAEA,24/06/2019,Facilities,Property,Securitas Security Services,5057265," 8,248.16 "
BEIS,UKAEA,24/06/2019,Facilities,Property,Securitas Security Services,5057265," 21,249.08 "
BEIS,UKAEA,24/06/2019,Facilities,Property,Securitas Security Services,5057265," 59,723.96 "
BEIS,UKAEA,24/06/2019,Engineering Goods,Other,Servo Components & Systems Ltd,5057267," 2,258.95 "
BEIS,UKAEA,24/06/2019,Engineering Goods,Fusion,Instrument Technology Ltd,5057271," 4,362.97 "
BEIS,UKAEA,26/06/2019,Hired Agency Staff - Rullion CMF/PO,Fusion,Rullion Engineering Ltd,5057272," 1,245.84 "
BEIS,UKAEA,26/06/2019,Hired Agency Staff - Rullion CMF/PO,Other,Rullion Engineering Ltd,5057275," 16,027.01 "
BEIS,UKAEA,24/06/2019,Engineering Goods,Fusion,P-Card Supplier,5057277,-699.60 
BEIS,UKAEA,24/06/2019,Travel,Fusion,P-Card Supplier,5057277, 635.00 
BEIS,UKAEA,26/06/2019,Hired Agency Staff - Rullion CMF/PO,Fusion,Rullion Engineering Ltd,5057283," 1,008.15 "
BEIS,UKAEA,24/06/2019,Professional Services,Fusion,Frazer Nash Consultancy,5057284," 3,901.08 "
BEIS,UKAEA,24/06/2019,Waste Management,Fusion,Mirion Technologies (Canberra UK) Limited,5057285," 20,265.00 "
BEIS,UKAEA,26/06/2019,Hired Agency Staff - Rullion CMF/PO,Support Services,Rullion Engineering Ltd,5057286," 7,256.48 "
BEIS,UKAEA,24/06/2019,ICT,Support Services,Technia Ltd,5057293," 6,432.81 "
BEIS,UKAEA,24/06/2019,Professional Services,Property,Trinity Fire & Security Systems Ltd,5057294," 1,520.00 "
BEIS,UKAEA,24/06/2019,Facilities,Other,SouthernsBroadstock Limited,5057295," 9,470.00 "
BEIS,UKAEA,24/06/2019,Engineering Goods,Fusion,UK Grid Solutions ltd,5057298," 2,674.00 "
BEIS,UKAEA,24/06/2019,Professional Services,Property,CBG Consultants Ltd.,5057299," 1,360.00 "
BEIS,UKAEA,24/06/2019,Professional Services,Fusion,Ridge And Partners Llp,5057301, 800.00 
BEIS,UKAEA,24/06/2019,Office Solutions,Fusion,Odyssey Interactive Ltd - t/a Interact,5057302, 500.00 
BEIS,UKAEA,24/06/2019,Facilities,Support Services,SouthernsBroadstock Limited,5057304, 564.00 
BEIS,UKAEA,24/06/2019,Facilities,Support Services,SouthernsBroadstock Limited,5057304," 3,008.00 "
BEIS,UKAEA,24/06/2019,Construction,Other,Thames Water Utilities,5057305," 4,330.00 "
BEIS,UKAEA,26/06/2019,Engineering Goods,Fusion,Sigma - Aldrich Co Ltd,5057313, 900.00 
BEIS,UKAEA,26/06/2019,Engineering Goods,Fusion,RS Components Ltd,5057316, 577.65 
BEIS,UKAEA,26/06/2019,Engineering Goods,Fusion,Qmx Laboratories Ltd,5057317," 1,183.00 "
BEIS,UKAEA,26/06/2019,Engineering Goods,Fusion,Qmx Laboratories Ltd,5057318," 2,040.00 "
BEIS,UKAEA,26/06/2019,Construction,Property,PMS Oxford Construction Services,5057331," 3,314.64 "
BEIS,UKAEA,26/06/2019,Construction,Property,PMS Oxford Construction Services,5057332," 6,315.88 "
BEIS,UKAEA,26/06/2019,Construction,Property,PMS Oxford Construction Services,5057333, 758.63 
BEIS,UKAEA,26/06/2019,ICT,Property,Calibre Cabling Services Ltd.,5057338," 2,249.30 "
BEIS,UKAEA,26/06/2019,Facilities,Property,Trinity Fire & Security Systems Ltd,5057341," 1,336.07 "
BEIS,UKAEA,26/06/2019,Facilities,Fusion,Trinity Fire & Security Systems Ltd,5057341," 3,117.49 "
BEIS,UKAEA,26/06/2019,Engineering Goods,Other,Machining Techology (Mach-Tech) Ltd,5057343," 1,208.91 "
BEIS,UKAEA,26/06/2019,Engineering Goods,Fusion,Vernacare HCS Ltd,5057353, 576.00 
BEIS,UKAEA,26/06/2019,Professional Services,Fusion,Fraser Walker Associates,5057355," 1,614.00 "
BEIS,UKAEA,26/06/2019,Professional Services,Fusion,Boxer Machine Tools Services,5057362," 1,250.00 "
BEIS,UKAEA,26/06/2019,Engineering Goods,Fusion,GEMS Sensors & Controls,5057363," 3,065.70 "
BEIS,UKAEA,26/06/2019,Engineering Goods,Fusion,GEMS Sensors & Controls,5057364," 7,357.68 "
BEIS,UKAEA,26/06/2019,Engineering Goods,Fusion,Swagelok London,5057375, 612.07 
BEIS,UKAEA,26/06/2019,Engineering Goods,Fusion,Boxer Machine Tools Services,5057378, 650.00 
BEIS,UKAEA,26/06/2019,Engineering Goods,Fusion,Boxer Machine Tools Services,5057379, 550.00 
BEIS,UKAEA,26/06/2019,Engineering Goods,Fusion,Scanwel,5057383," 3,530.00 "
BEIS,UKAEA,26/06/2019,Engineering Goods,Other,Phoenix Materials Testing Ltd,5057387," 7,592.80 "
BEIS,UKAEA,26/06/2019,Engineering Goods,Fusion,Erodex UK Ltd,5057389, 598.56 
BEIS,UKAEA,26/06/2019,Engineering Goods,Fusion,Machining Techology (Mach-Tech) Ltd,5057393, 798.66 
BEIS,UKAEA,26/06/2019,Engineering Goods,Fusion,Allectra Ltd,5057395," 1,578.00 "
BEIS,UKAEA,26/06/2019,Professional Services,Support Services,Equiniti,5057398," 88,651.06 "
BEIS,UKAEA,26/06/2019,Hired Agency Staff - Rullion CMF/PO,Fusion,Rullion Engineering Ltd,5057399," 2,308.81 "
BEIS,UKAEA,26/06/2019,Professional Services,Fusion,Quartzelec Ltd,5057400," 57,431.80 "
BEIS,UKAEA,26/06/2019,Hired Agency Staff - Rullion CMF/PO,Fusion,Rullion Engineering Ltd,5057401," 2,504.25 "
BEIS,UKAEA,26/06/2019,ICT,Fusion,Strumis Ltd,5057403," 2,199.07 "
BEIS,UKAEA,26/06/2019,Personnel Related,Fusion,Webrecruit,5057404," 2,500.00 "
BEIS,UKAEA,26/06/2019,ICT,Fusion,Dell Corporation Ltd,5057405," 4,180.00 "
BEIS,UKAEA,26/06/2019,ICT,Fusion,Dell Corporation Ltd,5057407," 5,100.18 "
BEIS,UKAEA,26/06/2019,Engineering Goods,Fusion,Laser 2000 UK Ltd - GBP,5057408, 518.20 
BEIS,UKAEA,26/06/2019,Operational Goods,Fusion,Deltawaite Limited,5057410," 3,720.00 "
BEIS,UKAEA,26/06/2019,Operational Goods,Fusion,Deltawaite Limited,5057411," 1,690.00 "
BEIS,UKAEA,27/06/2019,Professional Services,Fusion,Linde Kryotechnik Ag,5057419," 266,616.78 "
BEIS,UKAEA,26/06/2019,Engineering Goods,Support Services,600 UK,5057423, 990.10 
BEIS,UKAEA,26/06/2019,Engineering Goods,Support Services,Boxer Machine Tools Services,5057424, 673.66 
BEIS,UKAEA,26/06/2019,Professional Services,Support Services,BCS Learning & Development,5057425," 2,500.00 "
BEIS,UKAEA,26/06/2019,Hired Agency Staff - Rullion CMF/PO,Support Services,Rullion Engineering Ltd,5057427," 1,840.11 "
BEIS,UKAEA,26/06/2019,Learning and Development,Support Services,GP Strategies Ltd.,5057428, 685.80 
BEIS,UKAEA,26/06/2019,Learning and Development,Support Services,GP Strategies Ltd.,5057429," 4,212.00 "
BEIS,UKAEA,26/06/2019,Learning and Development,Support Services,Health Assured,5057430," 2,500.00 "
BEIS,UKAEA,26/06/2019,Research,Support Services,The IET,5057431," 4,260.00 "
BEIS,UKAEA,26/06/2019,ICT,Property,Vanix LLP,5057433, 634.34 
BEIS,UKAEA,26/06/2019,ICT,Support Services,Aztex Solutions Ltd,5057434, 977.02 
BEIS,UKAEA,26/06/2019,ICT,Property,Aztex Solutions Ltd,5057436," 2,197.16 "
BEIS,UKAEA,26/06/2019,ICT,Support Services,Vanix LLP,5057438," 10,037.92 "
BEIS,UKAEA,26/06/2019,ICT,Fusion,Aztex Solutions Ltd,5057439," 22,810.77 "
BEIS,UKAEA,26/06/2019,ICT,Support Services,Calibre Cabling Services Ltd.,5057440, 744.00 
BEIS,UKAEA,26/06/2019,ICT,Other,Aztex Solutions Ltd,5057442," 2,883.52 "
BEIS,UKAEA,26/06/2019,Engineering Goods,Fusion,Edmundson Electricals Ltd,5057449," 1,170.00 "
BEIS,UKAEA,26/06/2019,Engineering Goods,Fusion,BSA Tools Ltd,5057451," 1,400.00 "
BEIS,UKAEA,26/06/2019,Facilities,Property,Lorne Stewart Plc,5057452, 842.02 
BEIS,UKAEA,26/06/2019,Facilities,Property,Lorne Stewart Plc,5057454," 3,505.72 "
BEIS,UKAEA,26/06/2019,Facilities,Fusion,Lorne Stewart Plc,5057455," 1,746.00 "
BEIS,UKAEA,26/06/2019,Facilities,Fusion,Lorne Stewart Plc,5057456," 20,831.94 "
BEIS,UKAEA,26/06/2019,Facilities,Property,Lorne Stewart Plc,5057457," 2,474.63 "
BEIS,UKAEA,26/06/2019,Facilities,Property,Lorne Stewart Plc,5057458, 758.60 
BEIS,UKAEA,26/06/2019,Facilities,Property,Lorne Stewart Plc,5057461," 16,663.51 "
BEIS,UKAEA,26/06/2019,Facilities,Property,Lorne Stewart Plc,5057462," 3,573.81 "
BEIS,UKAEA,26/06/2019,Facilities,Fusion,Lorne Stewart Plc,5057463," 2,131.59 "
BEIS,UKAEA,26/06/2019,Facilities,Property,Lorne Stewart Plc,5057466," 1,473.94 "
BEIS,UKAEA,26/06/2019,Facilities,Property,Lorne Stewart Plc,5057467," 13,878.45 "
BEIS,UKAEA,26/06/2019,Facilities,Property,Lorne Stewart Plc,5057468, 593.47 
BEIS,UKAEA,26/06/2019,Facilities,Fusion,Lorne Stewart Plc,5057468," 1,217.19 "
BEIS,UKAEA,26/06/2019,Facilities,Fusion,Lorne Stewart Plc,5057470," 8,299.00 "
BEIS,UKAEA,26/06/2019,Engineering Goods,Other,Laser Micromachining Limited,5057476," 1,680.00 "
BEIS,UKAEA,26/06/2019,Personnel Related,Support Services,CGI IT UK Limited,5057479," 6,886.94 "
BEIS,UKAEA,26/06/2019,Personnel Related,Support Services,CGI IT UK Limited,5057483," 4,829.48 "
BEIS,UKAEA,26/06/2019,Facilities,Property,Securitas Security Services,5057484," 3,378.99 "
BEIS,UKAEA,26/06/2019,Facilities,Property,Securitas Security Services,5057484," 4,487.29 "
BEIS,UKAEA,26/06/2019,Facilities,Property,Securitas Security Services,5057484," 8,248.16 "
BEIS,UKAEA,26/06/2019,Facilities,Property,Securitas Security Services,5057484," 21,249.08 "
BEIS,UKAEA,26/06/2019,Facilities,Property,Securitas Security Services,5057484," 59,723.96 "
BEIS,UKAEA,26/06/2019,Hired Agency Staff - Rullion CMF/PO,Fusion,Rullion Engineering Ltd,5057487," 4,185.26 "
BEIS,UKAEA,26/06/2019,Hired Agency Staff - Rullion CMF/PO,Support Services,Rullion Engineering Ltd,5057488, 611.66 
BEIS,UKAEA,26/06/2019,Hired Agency Staff - Rullion CMF/PO,Fusion,Rullion Engineering Ltd,5057489," 3,672.90 "
BEIS,UKAEA,26/06/2019,Hired Agency Staff - Rullion CMF/PO,Fusion,Rullion Engineering Ltd,5057490," 3,950.49 "
BEIS,UKAEA,26/06/2019,Engineering Goods,Fusion,Leybold UK Ltd,5057496," 1,092.00 "
BEIS,UKAEA,26/06/2019,Engineering Goods,Fusion,FTI Ltd,5057498," 1,813.95 "
BEIS,UKAEA,26/06/2019,Engineering Goods,Fusion,Oxford Bolts & Bearings,5057500," 1,829.18 "
BEIS,UKAEA,26/06/2019,Engineering Goods,Support Services,XYZ Machine Tools,5057507, 671.88 
BEIS,UKAEA,27/06/2019,Office Solutions,Fusion,IOP Publishing Ltd - EUR,5057510," 1,888.84 "
BEIS,UKAEA,27/06/2019,Office Solutions,Fusion,IOP Publishing Ltd - EUR,5057511," 1,333.30 "
BEIS,UKAEA,27/06/2019,Office Solutions,Fusion,IOP Publishing Ltd - EUR,5057512," 1,250.00 "
BEIS,UKAEA,27/06/2019,Office Solutions,Fusion,IOP Publishing Ltd - EUR,5057516," 2,333.28 "
BEIS,UKAEA,26/06/2019,Engineering Goods,Fusion,Abingdon Access Ltd.,5057519, 790.00 
BEIS,UKAEA,24/06/2019,Receipts Suspense,Fusion,Chemtech Waste Management,6700112," 10,554.00 "
BEIS,UKAEA,17/06/2019,Receipts Suspense,Fusion,Hydratron Ltd,6700114," 1,106.40 "
BEIS,UKAEA,26/06/2019,Receipts Suspense,Fusion,The Mathworks,6700117," 4,320.00 "
BEIS,UKAEA,12/06/2019,Travel,Fusion,Employee Expenses,20006606, 580.45 
BEIS,UKAEA,12/06/2019,Travel,Fusion,Employee Expenses,20006612," 1,050.88 "
BEIS,UKAEA,12/06/2019,Travel,Fusion,Employee Expenses,20006640," 1,158.63 "
BEIS,UKAEA,12/06/2019,Relocation Costs,Fusion,Employee Expenses,20006645, 885.60 
BEIS,UKAEA,19/06/2019,Relocation Costs,Fusion,Employee Expenses,20006689, 625.00 
BEIS,UKAEA,26/06/2019,Travel,Fusion,Employee Expenses,20006750, 888.72 
BEIS,UKAEA,26/06/2019,Travel,Fusion,Employee Expenses,20006752," 1,033.82 "
BEIS,UKAEA,26/06/2019,Relocation Costs,Fusion,Employee Expenses,20006782," 3,220.48 "
BEIS,UKAEA,26/06/2019,Travel,Fusion,Employee Expenses,20006784, 566.73 
BEIS,UKAEA,26/06/2019,Other Employee Expenses,Other,Employee Expenses,20006786, 713.83 
BEIS,UKAEA,Various,Various,Various,Employee Expenses <500,Various," 30,767.03 "
BEIS,UKAEA,Various,Various,Various,P-Card Supplier <500,Various," 59,251.37 "
BEIS,UKAEA,Various,Various,Various,Supplier <500,Various," 123,953.54 "
